{"text_format":"3","workbook":"xlsx","n_sheets":1,"sheets":["Calendario annuale"],"not_rendered":{"images":4,"defined_names":14},"read":"whole","date_system":"1900"}

{"sheet":"Calendario annuale","index":0,"n_rows":55,"n_cols":21,"rows_kept":55,"merged":[[0,2,0,5]]}
[null,null,{"$f":"YEAR(TODAY())","v":2019},{"$nulls":17},"DATE IMPORTANTI"]
[]
[null,null,"GENNAIO",{"$nulls":7},"FEBBRAIO",{"$nulls":9},"1 GENNAIO"]
[null,null,"L","M","M","G","V","S","D",null,"L","M","M","G","V","S","D",{"$nulls":3},"CAPODANNO"]
[null,null,{"$f":"IF(DAY(GenDom1)=1,\"\",IF(AND(YEAR(GenDom1+1)=AnnoCalendario,MONTH(GenDom1+1)=1),GenDom1+1,\"\"))","v":""},{"$f":"IF(DAY(GenDom1)=1,\"\",IF(AND(YEAR(GenDom1+2)=AnnoCalendario,MONTH(GenDom1+2)=1),GenDom1+2,\"\"))","v":"2019-01-01"},{"$f":"IF(DAY(GenDom1)=1,\"\",IF(AND(YEAR(GenDom1+3)=AnnoCalendario,MONTH(GenDom1+3)=1),GenDom1+3,\"\"))","v":"2019-01-02"},{"$f":"IF(DAY(GenDom1)=1,\"\",IF(AND(YEAR(GenDom1+4)=AnnoCalendario,MONTH(GenDom1+4)=1),GenDom1+4,\"\"))","v":"2019-01-03"},{"$f":"IF(DAY(GenDom1)=1,\"\",IF(AND(YEAR(GenDom1+5)=AnnoCalendario,MONTH(GenDom1+5)=1),GenDom1+5,\"\"))","v":"2019-01-04"},{"$f":"IF(DAY(GenDom1)=1,\"\",IF(AND(YEAR(GenDom1+6)=AnnoCalendario,MONTH(GenDom1+6)=1),GenDom1+6,\"\"))","v":"2019-01-05"},{"$f":"IF(DAY(GenDom1)=1,IF(AND(YEAR(GenDom1)=AnnoCalendario,MONTH(GenDom1)=1),GenDom1,\"\"),IF(AND(YEAR(GenDom1+7)=AnnoCalendario,MONTH(GenDom1+7)=1),GenDom1+7,\"\"))","v":"2019-01-06"},null,{"$f":"IF(DAY(FebDom1)=1,\"\",IF(AND(YEAR(FebDom1+1)=AnnoCalendario,MONTH(FebDom1+1)=2),FebDom1+1,\"\"))","v":""},{"$f":"IF(DAY(FebDom1)=1,\"\",IF(AND(YEAR(FebDom1+2)=AnnoCalendario,MONTH(FebDom1+2)=2),FebDom1+2,\"\"))","v":""},{"$f":"IF(DAY(FebDom1)=1,\"\",IF(AND(YEAR(FebDom1+3)=AnnoCalendario,MONTH(FebDom1+3)=2),FebDom1+3,\"\"))","v":""},{"$f":"IF(DAY(FebDom1)=1,\"\",IF(AND(YEAR(FebDom1+4)=AnnoCalendario,MONTH(FebDom1+4)=2),FebDom1+4,\"\"))","v":""},{"$f":"IF(DAY(FebDom1)=1,\"\",IF(AND(YEAR(FebDom1+5)=AnnoCalendario,MONTH(FebDom1+5)=2),FebDom1+5,\"\"))","v":"2019-02-01"},{"$f":"IF(DAY(FebDom1)=1,\"\",IF(AND(YEAR(FebDom1+6)=AnnoCalendario,MONTH(FebDom1+6)=2),FebDom1+6,\"\"))","v":"2019-02-02"},{"$f":"IF(DAY(FebDom1)=1,IF(AND(YEAR(FebDom1)=AnnoCalendario,MONTH(FebDom1)=2),FebDom1,\"\"),IF(AND(YEAR(FebDom1+7)=AnnoCalendario,MONTH(FebDom1+7)=2),FebDom1+7,\"\"))","v":"2019-02-03"}]
[null,null,{"$f":"IF(DAY(GenDom1)=1,IF(AND(YEAR(GenDom1+1)=AnnoCalendario,MONTH(GenDom1+1)=1),GenDom1+1,\"\"),IF(AND(YEAR(GenDom1+8)=AnnoCalendario,MONTH(GenDom1+8)=1),GenDom1+8,\"\"))","v":"2019-01-07"},{"$f":"IF(DAY(GenDom1)=1,IF(AND(YEAR(GenDom1+2)=AnnoCalendario,MONTH(GenDom1+2)=1),GenDom1+2,\"\"),IF(AND(YEAR(GenDom1+9)=AnnoCalendario,MONTH(GenDom1+9)=1),GenDom1+9,\"\"))","v":"2019-01-08"},{"$f":"IF(DAY(GenDom1)=1,IF(AND(YEAR(GenDom1+3)=AnnoCalendario,MONTH(GenDom1+3)=1),GenDom1+3,\"\"),IF(AND(YEAR(GenDom1+10)=AnnoCalendario,MONTH(GenDom1+10)=1),GenDom1+10,\"\"))","v":"2019-01-09"},{"$f":"IF(DAY(GenDom1)=1,IF(AND(YEAR(GenDom1+4)=AnnoCalendario,MONTH(GenDom1+4)=1),GenDom1+4,\"\"),IF(AND(YEAR(GenDom1+11)=AnnoCalendario,MONTH(GenDom1+11)=1),GenDom1+11,\"\"))","v":"2019-01-10"},{"$f":"IF(DAY(GenDom1)=1,IF(AND(YEAR(GenDom1+5)=AnnoCalendario,MONTH(GenDom1+5)=1),GenDom1+5,\"\"),IF(AND(YEAR(GenDom1+12)=AnnoCalendario,MONTH(GenDom1+12)=1),GenDom1+12,\"\"))","v":"2019-01-11"},{"$f":"IF(DAY(GenDom1)=1,IF(AND(YEAR(GenDom1+6)=AnnoCalendario,MONTH(GenDom1+6)=1),GenDom1+6,\"\"),IF(AND(YEAR(GenDom1+13)=AnnoCalendario,MONTH(GenDom1+13)=1),GenDom1+13,\"\"))","v":"2019-01-12"},{"$f":"IF(DAY(GenDom1)=1,IF(AND(YEAR(GenDom1+7)=AnnoCalendario,MONTH(GenDom1+7)=1),GenDom1+7,\"\"),IF(AND(YEAR(GenDom1+14)=AnnoCalendario,MONTH(GenDom1+14)=1),GenDom1+14,\"\"))","v":"2019-01-13"},null,{"$f":"IF(DAY(FebDom1)=1,IF(AND(YEAR(FebDom1+1)=AnnoCalendario,MONTH(FebDom1+1)=2),FebDom1+1,\"\"),IF(AND(YEAR(FebDom1+8)=AnnoCalendario,MONTH(FebDom1+8)=2),FebDom1+8,\"\"))","v":"2019-02-04"},{"$f":"IF(DAY(FebDom1)=1,IF(AND(YEAR(FebDom1+2)=AnnoCalendario,MONTH(FebDom1+2)=2),FebDom1+2,\"\"),IF(AND(YEAR(FebDom1+9)=AnnoCalendario,MONTH(FebDom1+9)=2),FebDom1+9,\"\"))","v":"2019-02-05"},{"$f":"IF(DAY(FebDom1)=1,IF(AND(YEAR(FebDom1+3)=AnnoCalendario,MONTH(FebDom1+3)=2),FebDom1+3,\"\"),IF(AND(YEAR(FebDom1+10)=AnnoCalendario,MONTH(FebDom1+10)=2),FebDom1+10,\"\"))","v":"2019-02-06"},{"$f":"IF(DAY(FebDom1)=1,IF(AND(YEAR(FebDom1+4)=AnnoCalendario,MONTH(FebDom1+4)=2),FebDom1+4,\"\"),IF(AND(YEAR(FebDom1+11)=AnnoCalendario,MONTH(FebDom1+11)=2),FebDom1+11,\"\"))","v":"2019-02-07"},{"$f":"IF(DAY(FebDom1)=1,IF(AND(YEAR(FebDom1+5)=AnnoCalendario,MONTH(FebDom1+5)=2),FebDom1+5,\"\"),IF(AND(YEAR(FebDom1+12)=AnnoCalendario,MONTH(FebDom1+12)=2),FebDom1+12,\"\"))","v":"2019-02-08"},{"$f":"IF(DAY(FebDom1)=1,IF(AND(YEAR(FebDom1+6)=AnnoCalendario,MONTH(FebDom1+6)=2),FebDom1+6,\"\"),IF(AND(YEAR(FebDom1+13)=AnnoCalendario,MONTH(FebDom1+13)=2),FebDom1+13,\"\"))","v":"2019-02-09"},{"$f":"IF(DAY(FebDom1)=1,IF(AND(YEAR(FebDom1+7)=AnnoCalendario,MONTH(FebDom1+7)=2),FebDom1+7,\"\"),IF(AND(YEAR(FebDom1+14)=AnnoCalendario,MONTH(FebDom1+14)=2),FebDom1+14,\"\"))","v":"2019-02-10"},{"$nulls":3},"14 FEBBRAIO"]
[null,null,{"$f":"IF(DAY(GenDom1)=1,IF(AND(YEAR(GenDom1+8)=AnnoCalendario,MONTH(GenDom1+8)=1),GenDom1+8,\"\"),IF(AND(YEAR(GenDom1+15)=AnnoCalendario,MONTH(GenDom1+15)=1),GenDom1+15,\"\"))","v":"2019-01-14"},{"$f":"IF(DAY(GenDom1)=1,IF(AND(YEAR(GenDom1+9)=AnnoCalendario,MONTH(GenDom1+9)=1),GenDom1+9,\"\"),IF(AND(YEAR(GenDom1+16)=AnnoCalendario,MONTH(GenDom1+16)=1),GenDom1+16,\"\"))","v":"2019-01-15"},{"$f":"IF(DAY(GenDom1)=1,IF(AND(YEAR(GenDom1+10)=AnnoCalendario,MONTH(GenDom1+10)=1),GenDom1+10,\"\"),IF(AND(YEAR(GenDom1+17)=AnnoCalendario,MONTH(GenDom1+17)=1),GenDom1+17,\"\"))","v":"2019-01-16"},{"$f":"IF(DAY(GenDom1)=1,IF(AND(YEAR(GenDom1+11)=AnnoCalendario,MONTH(GenDom1+11)=1),GenDom1+11,\"\"),IF(AND(YEAR(GenDom1+18)=AnnoCalendario,MONTH(GenDom1+18)=1),GenDom1+18,\"\"))","v":"2019-01-17"},{"$f":"IF(DAY(GenDom1)=1,IF(AND(YEAR(GenDom1+12)=AnnoCalendario,MONTH(GenDom1+12)=1),GenDom1+12,\"\"),IF(AND(YEAR(GenDom1+19)=AnnoCalendario,MONTH(GenDom1+19)=1),GenDom1+19,\"\"))","v":"2019-01-18"},{"$f":"IF(DAY(GenDom1)=1,IF(AND(YEAR(GenDom1+13)=AnnoCalendario,MONTH(GenDom1+13)=1),GenDom1+13,\"\"),IF(AND(YEAR(GenDom1+20)=AnnoCalendario,MONTH(GenDom1+20)=1),GenDom1+20,\"\"))","v":"2019-01-19"},{"$f":"IF(DAY(GenDom1)=1,IF(AND(YEAR(GenDom1+14)=AnnoCalendario,MONTH(GenDom1+14)=1),GenDom1+14,\"\"),IF(AND(YEAR(GenDom1+21)=AnnoCalendario,MONTH(GenDom1+21)=1),GenDom1+21,\"\"))","v":"2019-01-20"},null,{"$f":"IF(DAY(FebDom1)=1,IF(AND(YEAR(FebDom1+8)=AnnoCalendario,MONTH(FebDom1+8)=2),FebDom1+8,\"\"),IF(AND(YEAR(FebDom1+15)=AnnoCalendario,MONTH(FebDom1+15)=2),FebDom1+15,\"\"))","v":"2019-02-11"},{"$f":"IF(DAY(FebDom1)=1,IF(AND(YEAR(FebDom1+9)=AnnoCalendario,MONTH(FebDom1+9)=2),FebDom1+9,\"\"),IF(AND(YEAR(FebDom1+16)=AnnoCalendario,MONTH(FebDom1+16)=2),FebDom1+16,\"\"))","v":"2019-02-12"},{"$f":"IF(DAY(FebDom1)=1,IF(AND(YEAR(FebDom1+10)=AnnoCalendario,MONTH(FebDom1+10)=2),FebDom1+10,\"\"),IF(AND(YEAR(FebDom1+17)=AnnoCalendario,MONTH(FebDom1+17)=2),FebDom1+17,\"\"))","v":"2019-02-13"},{"$f":"IF(DAY(FebDom1)=1,IF(AND(YEAR(FebDom1+11)=AnnoCalendario,MONTH(FebDom1+11)=2),FebDom1+11,\"\"),IF(AND(YEAR(FebDom1+18)=AnnoCalendario,MONTH(FebDom1+18)=2),FebDom1+18,\"\"))","v":"2019-02-14"},{"$f":"IF(DAY(FebDom1)=1,IF(AND(YEAR(FebDom1+12)=AnnoCalendario,MONTH(FebDom1+12)=2),FebDom1+12,\"\"),IF(AND(YEAR(FebDom1+19)=AnnoCalendario,MONTH(FebDom1+19)=2),FebDom1+19,\"\"))","v":"2019-02-15"},{"$f":"IF(DAY(FebDom1)=1,IF(AND(YEAR(FebDom1+13)=AnnoCalendario,MONTH(FebDom1+13)=2),FebDom1+13,\"\"),IF(AND(YEAR(FebDom1+20)=AnnoCalendario,MONTH(FebDom1+20)=2),FebDom1+20,\"\"))","v":"2019-02-16"},{"$f":"IF(DAY(FebDom1)=1,IF(AND(YEAR(FebDom1+14)=AnnoCalendario,MONTH(FebDom1+14)=2),FebDom1+14,\"\"),IF(AND(YEAR(FebDom1+21)=AnnoCalendario,MONTH(FebDom1+21)=2),FebDom1+21,\"\"))","v":"2019-02-17"},{"$nulls":3},"SAN VALENTINO"]
[null,null,{"$f":"IF(DAY(GenDom1)=1,IF(AND(YEAR(GenDom1+15)=AnnoCalendario,MONTH(GenDom1+15)=1),GenDom1+15,\"\"),IF(AND(YEAR(GenDom1+22)=AnnoCalendario,MONTH(GenDom1+22)=1),GenDom1+22,\"\"))","v":"2019-01-21"},{"$f":"IF(DAY(GenDom1)=1,IF(AND(YEAR(GenDom1+16)=AnnoCalendario,MONTH(GenDom1+16)=1),GenDom1+16,\"\"),IF(AND(YEAR(GenDom1+23)=AnnoCalendario,MONTH(GenDom1+23)=1),GenDom1+23,\"\"))","v":"2019-01-22"},{"$f":"IF(DAY(GenDom1)=1,IF(AND(YEAR(GenDom1+17)=AnnoCalendario,MONTH(GenDom1+17)=1),GenDom1+17,\"\"),IF(AND(YEAR(GenDom1+24)=AnnoCalendario,MONTH(GenDom1+24)=1),GenDom1+24,\"\"))","v":"2019-01-23"},{"$f":"IF(DAY(GenDom1)=1,IF(AND(YEAR(GenDom1+18)=AnnoCalendario,MONTH(GenDom1+18)=1),GenDom1+18,\"\"),IF(AND(YEAR(GenDom1+25)=AnnoCalendario,MONTH(GenDom1+25)=1),GenDom1+25,\"\"))","v":"2019-01-24"},{"$f":"IF(DAY(GenDom1)=1,IF(AND(YEAR(GenDom1+19)=AnnoCalendario,MONTH(GenDom1+19)=1),GenDom1+19,\"\"),IF(AND(YEAR(GenDom1+26)=AnnoCalendario,MONTH(GenDom1+26)=1),GenDom1+26,\"\"))","v":"2019-01-25"},{"$f":"IF(DAY(GenDom1)=1,IF(AND(YEAR(GenDom1+20)=AnnoCalendario,MONTH(GenDom1+20)=1),GenDom1+20,\"\"),IF(AND(YEAR(GenDom1+27)=AnnoCalendario,MONTH(GenDom1+27)=1),GenDom1+27,\"\"))","v":"2019-01-26"},{"$f":"IF(DAY(GenDom1)=1,IF(AND(YEAR(GenDom1+21)=AnnoCalendario,MONTH(GenDom1+21)=1),GenDom1+21,\"\"),IF(AND(YEAR(GenDom1+28)=AnnoCalendario,MONTH(GenDom1+28)=1),GenDom1+28,\"\"))","v":"2019-01-27"},null,{"$f":"IF(DAY(FebDom1)=1,IF(AND(YEAR(FebDom1+15)=AnnoCalendario,MONTH(FebDom1+15)=2),FebDom1+15,\"\"),IF(AND(YEAR(FebDom1+22)=AnnoCalendario,MONTH(FebDom1+22)=2),FebDom1+22,\"\"))","v":"2019-02-18"},{"$f":"IF(DAY(FebDom1)=1,IF(AND(YEAR(FebDom1+16)=AnnoCalendario,MONTH(FebDom1+16)=2),FebDom1+16,\"\"),IF(AND(YEAR(FebDom1+23)=AnnoCalendario,MONTH(FebDom1+23)=2),FebDom1+23,\"\"))","v":"2019-02-19"},{"$f":"IF(DAY(FebDom1)=1,IF(AND(YEAR(FebDom1+17)=AnnoCalendario,MONTH(FebDom1+17)=2),FebDom1+17,\"\"),IF(AND(YEAR(FebDom1+24)=AnnoCalendario,MONTH(FebDom1+24)=2),FebDom1+24,\"\"))","v":"2019-02-20"},{"$f":"IF(DAY(FebDom1)=1,IF(AND(YEAR(FebDom1+18)=AnnoCalendario,MONTH(FebDom1+18)=2),FebDom1+18,\"\"),IF(AND(YEAR(FebDom1+25)=AnnoCalendario,MONTH(FebDom1+25)=2),FebDom1+25,\"\"))","v":"2019-02-21"},{"$f":"IF(DAY(FebDom1)=1,IF(AND(YEAR(FebDom1+19)=AnnoCalendario,MONTH(FebDom1+19)=2),FebDom1+19,\"\"),IF(AND(YEAR(FebDom1+26)=AnnoCalendario,MONTH(FebDom1+26)=2),FebDom1+26,\"\"))","v":"2019-02-22"},{"$f":"IF(DAY(FebDom1)=1,IF(AND(YEAR(FebDom1+20)=AnnoCalendario,MONTH(FebDom1+20)=2),FebDom1+20,\"\"),IF(AND(YEAR(FebDom1+27)=AnnoCalendario,MONTH(FebDom1+27)=2),FebDom1+27,\"\"))","v":"2019-02-23"},{"$f":"IF(DAY(FebDom1)=1,IF(AND(YEAR(FebDom1+21)=AnnoCalendario,MONTH(FebDom1+21)=2),FebDom1+21,\"\"),IF(AND(YEAR(FebDom1+28)=AnnoCalendario,MONTH(FebDom1+28)=2),FebDom1+28,\"\"))","v":"2019-02-24"}]
[null,null,{"$f":"IF(DAY(GenDom1)=1,IF(AND(YEAR(GenDom1+22)=AnnoCalendario,MONTH(GenDom1+22)=1),GenDom1+22,\"\"),IF(AND(YEAR(GenDom1+29)=AnnoCalendario,MONTH(GenDom1+29)=1),GenDom1+29,\"\"))","v":"2019-01-28"},{"$f":"IF(DAY(GenDom1)=1,IF(AND(YEAR(GenDom1+23)=AnnoCalendario,MONTH(GenDom1+23)=1),GenDom1+23,\"\"),IF(AND(YEAR(GenDom1+30)=AnnoCalendario,MONTH(GenDom1+30)=1),GenDom1+30,\"\"))","v":"2019-01-29"},{"$f":"IF(DAY(GenDom1)=1,IF(AND(YEAR(GenDom1+24)=AnnoCalendario,MONTH(GenDom1+24)=1),GenDom1+24,\"\"),IF(AND(YEAR(GenDom1+31)=AnnoCalendario,MONTH(GenDom1+31)=1),GenDom1+31,\"\"))","v":"2019-01-30"},{"$f":"IF(DAY(GenDom1)=1,IF(AND(YEAR(GenDom1+25)=AnnoCalendario,MONTH(GenDom1+25)=1),GenDom1+25,\"\"),IF(AND(YEAR(GenDom1+32)=AnnoCalendario,MONTH(GenDom1+32)=1),GenDom1+32,\"\"))","v":"2019-01-31"},{"$f":"IF(DAY(GenDom1)=1,IF(AND(YEAR(GenDom1+26)=AnnoCalendario,MONTH(GenDom1+26)=1),GenDom1+26,\"\"),IF(AND(YEAR(GenDom1+33)=AnnoCalendario,MONTH(GenDom1+33)=1),GenDom1+33,\"\"))","v":""},{"$f":"IF(DAY(GenDom1)=1,IF(AND(YEAR(GenDom1+27)=AnnoCalendario,MONTH(GenDom1+27)=1),GenDom1+27,\"\"),IF(AND(YEAR(GenDom1+34)=AnnoCalendario,MONTH(GenDom1+34)=1),GenDom1+34,\"\"))","v":""},{"$f":"IF(DAY(GenDom1)=1,IF(AND(YEAR(GenDom1+28)=AnnoCalendario,MONTH(GenDom1+28)=1),GenDom1+28,\"\"),IF(AND(YEAR(GenDom1+35)=AnnoCalendario,MONTH(GenDom1+35)=1),GenDom1+35,\"\"))","v":""},null,{"$f":"IF(DAY(FebDom1)=1,IF(AND(YEAR(FebDom1+22)=AnnoCalendario,MONTH(FebDom1+22)=2),FebDom1+22,\"\"),IF(AND(YEAR(FebDom1+29)=AnnoCalendario,MONTH(FebDom1+29)=2),FebDom1+29,\"\"))","v":"2019-02-25"},{"$f":"IF(DAY(FebDom1)=1,IF(AND(YEAR(FebDom1+23)=AnnoCalendario,MONTH(FebDom1+23)=2),FebDom1+23,\"\"),IF(AND(YEAR(FebDom1+30)=AnnoCalendario,MONTH(FebDom1+30)=2),FebDom1+30,\"\"))","v":"2019-02-26"},{"$f":"IF(DAY(FebDom1)=1,IF(AND(YEAR(FebDom1+24)=AnnoCalendario,MONTH(FebDom1+24)=2),FebDom1+24,\"\"),IF(AND(YEAR(FebDom1+31)=AnnoCalendario,MONTH(FebDom1+31)=2),FebDom1+31,\"\"))","v":"2019-02-27"},{"$f":"IF(DAY(FebDom1)=1,IF(AND(YEAR(FebDom1+25)=AnnoCalendario,MONTH(FebDom1+25)=2),FebDom1+25,\"\"),IF(AND(YEAR(FebDom1+32)=AnnoCalendario,MONTH(FebDom1+32)=2),FebDom1+32,\"\"))","v":"2019-02-28"},{"$f":"IF(DAY(FebDom1)=1,IF(AND(YEAR(FebDom1+26)=AnnoCalendario,MONTH(FebDom1+26)=2),FebDom1+26,\"\"),IF(AND(YEAR(FebDom1+33)=AnnoCalendario,MONTH(FebDom1+33)=2),FebDom1+33,\"\"))","v":""},{"$f":"IF(DAY(FebDom1)=1,IF(AND(YEAR(FebDom1+27)=AnnoCalendario,MONTH(FebDom1+27)=2),FebDom1+27,\"\"),IF(AND(YEAR(FebDom1+34)=AnnoCalendario,MONTH(FebDom1+34)=2),FebDom1+34,\"\"))","v":""},{"$f":"IF(DAY(FebDom1)=1,IF(AND(YEAR(FebDom1+28)=AnnoCalendario,MONTH(FebDom1+28)=2),FebDom1+28,\"\"),IF(AND(YEAR(FebDom1+35)=AnnoCalendario,MONTH(FebDom1+35)=2),FebDom1+35,\"\"))","v":""},{"$nulls":3},"22 FEBBRAIO"]
[null,null,{"$f":"IF(DAY(GenDom1)=1,IF(AND(YEAR(GenDom1+29)=AnnoCalendario,MONTH(GenDom1+29)=1),GenDom1+29,\"\"),IF(AND(YEAR(GenDom1+36)=AnnoCalendario,MONTH(GenDom1+36)=1),GenDom1+36,\"\"))","v":""},{"$f":"IF(DAY(GenDom1)=1,IF(AND(YEAR(GenDom1+30)=AnnoCalendario,MONTH(GenDom1+30)=1),GenDom1+30,\"\"),IF(AND(YEAR(GenDom1+37)=AnnoCalendario,MONTH(GenDom1+37)=1),GenDom1+37,\"\"))","v":""},{"$f":"IF(DAY(GenDom1)=1,IF(AND(YEAR(GenDom1+31)=AnnoCalendario,MONTH(GenDom1+31)=1),GenDom1+31,\"\"),IF(AND(YEAR(GenDom1+38)=AnnoCalendario,MONTH(GenDom1+38)=1),GenDom1+38,\"\"))","v":""},{"$f":"IF(DAY(GenDom1)=1,IF(AND(YEAR(GenDom1+32)=AnnoCalendario,MONTH(GenDom1+32)=1),GenDom1+32,\"\"),IF(AND(YEAR(GenDom1+39)=AnnoCalendario,MONTH(GenDom1+39)=1),GenDom1+39,\"\"))","v":""},{"$f":"IF(DAY(GenDom1)=1,IF(AND(YEAR(GenDom1+33)=AnnoCalendario,MONTH(GenDom1+33)=1),GenDom1+33,\"\"),IF(AND(YEAR(GenDom1+40)=AnnoCalendario,MONTH(GenDom1+40)=1),GenDom1+40,\"\"))","v":""},{"$f":"IF(DAY(GenDom1)=1,IF(AND(YEAR(GenDom1+34)=AnnoCalendario,MONTH(GenDom1+34)=1),GenDom1+34,\"\"),IF(AND(YEAR(GenDom1+41)=AnnoCalendario,MONTH(GenDom1+41)=1),GenDom1+41,\"\"))","v":""},{"$f":"IF(DAY(GenDom1)=1,IF(AND(YEAR(GenDom1+35)=AnnoCalendario,MONTH(GenDom1+35)=1),GenDom1+35,\"\"),IF(AND(YEAR(GenDom1+42)=AnnoCalendario,MONTH(GenDom1+42)=1),GenDom1+42,\"\"))","v":""},null,{"$f":"IF(DAY(FebDom1)=1,IF(AND(YEAR(FebDom1+29)=AnnoCalendario,MONTH(FebDom1+29)=2),FebDom1+29,\"\"),IF(AND(YEAR(FebDom1+36)=AnnoCalendario,MONTH(FebDom1+36)=2),FebDom1+36,\"\"))","v":""},{"$f":"IF(DAY(FebDom1)=1,IF(AND(YEAR(FebDom1+30)=AnnoCalendario,MONTH(FebDom1+30)=2),FebDom1+30,\"\"),IF(AND(YEAR(FebDom1+37)=AnnoCalendario,MONTH(FebDom1+37)=2),FebDom1+37,\"\"))","v":""},{"$f":"IF(DAY(FebDom1)=1,IF(AND(YEAR(FebDom1+31)=AnnoCalendario,MONTH(FebDom1+31)=2),FebDom1+31,\"\"),IF(AND(YEAR(FebDom1+38)=AnnoCalendario,MONTH(FebDom1+38)=2),FebDom1+38,\"\"))","v":""},{"$f":"IF(DAY(FebDom1)=1,IF(AND(YEAR(FebDom1+32)=AnnoCalendario,MONTH(FebDom1+32)=2),FebDom1+32,\"\"),IF(AND(YEAR(FebDom1+39)=AnnoCalendario,MONTH(FebDom1+39)=2),FebDom1+39,\"\"))","v":""},{"$f":"IF(DAY(FebDom1)=1,IF(AND(YEAR(FebDom1+33)=AnnoCalendario,MONTH(FebDom1+33)=2),FebDom1+33,\"\"),IF(AND(YEAR(FebDom1+40)=AnnoCalendario,MONTH(FebDom1+40)=2),FebDom1+40,\"\"))","v":""},{"$f":"IF(DAY(FebDom1)=1,IF(AND(YEAR(FebDom1+34)=AnnoCalendario,MONTH(FebDom1+34)=2),FebDom1+34,\"\"),IF(AND(YEAR(FebDom1+41)=AnnoCalendario,MONTH(FebDom1+41)=2),FebDom1+41,\"\"))","v":""},{"$f":"IF(DAY(FebDom1)=1,IF(AND(YEAR(FebDom1+35)=AnnoCalendario,MONTH(FebDom1+35)=2),FebDom1+35,\"\"),IF(AND(YEAR(FebDom1+42)=AnnoCalendario,MONTH(FebDom1+42)=2),FebDom1+42,\"\"))","v":""},{"$nulls":3},"PORTE APERTE"]
[]
[null,null,"MARZO",{"$nulls":7},"APRILE"]
[null,null,"L","M","M","G","V","S","D",null,"L","M","M","G","V","S","D"]
[null,null,{"$f":"IF(DAY(MarDom1)=1,\"\",IF(AND(YEAR(MarDom1+1)=AnnoCalendario,MONTH(MarDom1+1)=3),MarDom1+1,\"\"))","v":""},{"$f":"IF(DAY(MarDom1)=1,\"\",IF(AND(YEAR(MarDom1+2)=AnnoCalendario,MONTH(MarDom1+2)=3),MarDom1+2,\"\"))","v":""},{"$f":"IF(DAY(MarDom1)=1,\"\",IF(AND(YEAR(MarDom1+3)=AnnoCalendario,MONTH(MarDom1+3)=3),MarDom1+3,\"\"))","v":""},{"$f":"IF(DAY(MarDom1)=1,\"\",IF(AND(YEAR(MarDom1+4)=AnnoCalendario,MONTH(MarDom1+4)=3),MarDom1+4,\"\"))","v":""},{"$f":"IF(DAY(MarDom1)=1,\"\",IF(AND(YEAR(MarDom1+5)=AnnoCalendario,MONTH(MarDom1+5)=3),MarDom1+5,\"\"))","v":"2019-03-01"},{"$f":"IF(DAY(MarDom1)=1,\"\",IF(AND(YEAR(MarDom1+6)=AnnoCalendario,MONTH(MarDom1+6)=3),MarDom1+6,\"\"))","v":"2019-03-02"},{"$f":"IF(DAY(MarDom1)=1,IF(AND(YEAR(MarDom1)=AnnoCalendario,MONTH(MarDom1)=3),MarDom1,\"\"),IF(AND(YEAR(MarDom1+7)=AnnoCalendario,MONTH(MarDom1+7)=3),MarDom1+7,\"\"))","v":"2019-03-03"},null,{"$f":"IF(DAY(AprDom1)=1,\"\",IF(AND(YEAR(AprDom1+1)=AnnoCalendario,MONTH(AprDom1+1)=4),AprDom1+1,\"\"))","v":"2019-04-01"},{"$f":"IF(DAY(AprDom1)=1,\"\",IF(AND(YEAR(AprDom1+2)=AnnoCalendario,MONTH(AprDom1+2)=4),AprDom1+2,\"\"))","v":"2019-04-02"},{"$f":"IF(DAY(AprDom1)=1,\"\",IF(AND(YEAR(AprDom1+3)=AnnoCalendario,MONTH(AprDom1+3)=4),AprDom1+3,\"\"))","v":"2019-04-03"},{"$f":"IF(DAY(AprDom1)=1,\"\",IF(AND(YEAR(AprDom1+4)=AnnoCalendario,MONTH(AprDom1+4)=4),AprDom1+4,\"\"))","v":"2019-04-04"},{"$f":"IF(DAY(AprDom1)=1,\"\",IF(AND(YEAR(AprDom1+5)=AnnoCalendario,MONTH(AprDom1+5)=4),AprDom1+5,\"\"))","v":"2019-04-05"},{"$f":"IF(DAY(AprDom1)=1,\"\",IF(AND(YEAR(AprDom1+6)=AnnoCalendario,MONTH(AprDom1+6)=4),AprDom1+6,\"\"))","v":"2019-04-06"},{"$f":"IF(DAY(AprDom1)=1,IF(AND(YEAR(AprDom1)=AnnoCalendario,MONTH(AprDom1)=4),AprDom1,\"\"),IF(AND(YEAR(AprDom1+7)=AnnoCalendario,MONTH(AprDom1+7)=4),AprDom1+7,\"\"))","v":"2019-04-07"}]
[null,null,{"$f":"IF(DAY(MarDom1)=1,IF(AND(YEAR(MarDom1+1)=AnnoCalendario,MONTH(MarDom1+1)=3),MarDom1+1,\"\"),IF(AND(YEAR(MarDom1+8)=AnnoCalendario,MONTH(MarDom1+8)=3),MarDom1+8,\"\"))","v":"2019-03-04"},{"$f":"IF(DAY(MarDom1)=1,IF(AND(YEAR(MarDom1+2)=AnnoCalendario,MONTH(MarDom1+2)=3),MarDom1+2,\"\"),IF(AND(YEAR(MarDom1+9)=AnnoCalendario,MONTH(MarDom1+9)=3),MarDom1+9,\"\"))","v":"2019-03-05"},{"$f":"IF(DAY(MarDom1)=1,IF(AND(YEAR(MarDom1+3)=AnnoCalendario,MONTH(MarDom1+3)=3),MarDom1+3,\"\"),IF(AND(YEAR(MarDom1+10)=AnnoCalendario,MONTH(MarDom1+10)=3),MarDom1+10,\"\"))","v":"2019-03-06"},{"$f":"IF(DAY(MarDom1)=1,IF(AND(YEAR(MarDom1+4)=AnnoCalendario,MONTH(MarDom1+4)=3),MarDom1+4,\"\"),IF(AND(YEAR(MarDom1+11)=AnnoCalendario,MONTH(MarDom1+11)=3),MarDom1+11,\"\"))","v":"2019-03-07"},{"$f":"IF(DAY(MarDom1)=1,IF(AND(YEAR(MarDom1+5)=AnnoCalendario,MONTH(MarDom1+5)=3),MarDom1+5,\"\"),IF(AND(YEAR(MarDom1+12)=AnnoCalendario,MONTH(MarDom1+12)=3),MarDom1+12,\"\"))","v":"2019-03-08"},{"$f":"IF(DAY(MarDom1)=1,IF(AND(YEAR(MarDom1+6)=AnnoCalendario,MONTH(MarDom1+6)=3),MarDom1+6,\"\"),IF(AND(YEAR(MarDom1+13)=AnnoCalendario,MONTH(MarDom1+13)=3),MarDom1+13,\"\"))","v":"2019-03-09"},{"$f":"IF(DAY(MarDom1)=1,IF(AND(YEAR(MarDom1+7)=AnnoCalendario,MONTH(MarDom1+7)=3),MarDom1+7,\"\"),IF(AND(YEAR(MarDom1+14)=AnnoCalendario,MONTH(MarDom1+14)=3),MarDom1+14,\"\"))","v":"2019-03-10"},null,{"$f":"IF(DAY(AprDom1)=1,IF(AND(YEAR(AprDom1+1)=AnnoCalendario,MONTH(AprDom1+1)=4),AprDom1+1,\"\"),IF(AND(YEAR(AprDom1+8)=AnnoCalendario,MONTH(AprDom1+8)=4),AprDom1+8,\"\"))","v":"2019-04-08"},{"$f":"IF(DAY(AprDom1)=1,IF(AND(YEAR(AprDom1+2)=AnnoCalendario,MONTH(AprDom1+2)=4),AprDom1+2,\"\"),IF(AND(YEAR(AprDom1+9)=AnnoCalendario,MONTH(AprDom1+9)=4),AprDom1+9,\"\"))","v":"2019-04-09"},{"$f":"IF(DAY(AprDom1)=1,IF(AND(YEAR(AprDom1+3)=AnnoCalendario,MONTH(AprDom1+3)=4),AprDom1+3,\"\"),IF(AND(YEAR(AprDom1+10)=AnnoCalendario,MONTH(AprDom1+10)=4),AprDom1+10,\"\"))","v":"2019-04-10"},{"$f":"IF(DAY(AprDom1)=1,IF(AND(YEAR(AprDom1+4)=AnnoCalendario,MONTH(AprDom1+4)=4),AprDom1+4,\"\"),IF(AND(YEAR(AprDom1+11)=AnnoCalendario,MONTH(AprDom1+11)=4),AprDom1+11,\"\"))","v":"2019-04-11"},{"$f":"IF(DAY(AprDom1)=1,IF(AND(YEAR(AprDom1+5)=AnnoCalendario,MONTH(AprDom1+5)=4),AprDom1+5,\"\"),IF(AND(YEAR(AprDom1+12)=AnnoCalendario,MONTH(AprDom1+12)=4),AprDom1+12,\"\"))","v":"2019-04-12"},{"$f":"IF(DAY(AprDom1)=1,IF(AND(YEAR(AprDom1+6)=AnnoCalendario,MONTH(AprDom1+6)=4),AprDom1+6,\"\"),IF(AND(YEAR(AprDom1+13)=AnnoCalendario,MONTH(AprDom1+13)=4),AprDom1+13,\"\"))","v":"2019-04-13"},{"$f":"IF(DAY(AprDom1)=1,IF(AND(YEAR(AprDom1+7)=AnnoCalendario,MONTH(AprDom1+7)=4),AprDom1+7,\"\"),IF(AND(YEAR(AprDom1+14)=AnnoCalendario,MONTH(AprDom1+14)=4),AprDom1+14,\"\"))","v":"2019-04-14"}]
[null,null,{"$f":"IF(DAY(MarDom1)=1,IF(AND(YEAR(MarDom1+8)=AnnoCalendario,MONTH(MarDom1+8)=3),MarDom1+8,\"\"),IF(AND(YEAR(MarDom1+15)=AnnoCalendario,MONTH(MarDom1+15)=3),MarDom1+15,\"\"))","v":"2019-03-11"},{"$f":"IF(DAY(MarDom1)=1,IF(AND(YEAR(MarDom1+9)=AnnoCalendario,MONTH(MarDom1+9)=3),MarDom1+9,\"\"),IF(AND(YEAR(MarDom1+16)=AnnoCalendario,MONTH(MarDom1+16)=3),MarDom1+16,\"\"))","v":"2019-03-12"},{"$f":"IF(DAY(MarDom1)=1,IF(AND(YEAR(MarDom1+10)=AnnoCalendario,MONTH(MarDom1+10)=3),MarDom1+10,\"\"),IF(AND(YEAR(MarDom1+17)=AnnoCalendario,MONTH(MarDom1+17)=3),MarDom1+17,\"\"))","v":"2019-03-13"},{"$f":"IF(DAY(MarDom1)=1,IF(AND(YEAR(MarDom1+11)=AnnoCalendario,MONTH(MarDom1+11)=3),MarDom1+11,\"\"),IF(AND(YEAR(MarDom1+18)=AnnoCalendario,MONTH(MarDom1+18)=3),MarDom1+18,\"\"))","v":"2019-03-14"},{"$f":"IF(DAY(MarDom1)=1,IF(AND(YEAR(MarDom1+12)=AnnoCalendario,MONTH(MarDom1+12)=3),MarDom1+12,\"\"),IF(AND(YEAR(MarDom1+19)=AnnoCalendario,MONTH(MarDom1+19)=3),MarDom1+19,\"\"))","v":"2019-03-15"},{"$f":"IF(DAY(MarDom1)=1,IF(AND(YEAR(MarDom1+13)=AnnoCalendario,MONTH(MarDom1+13)=3),MarDom1+13,\"\"),IF(AND(YEAR(MarDom1+20)=AnnoCalendario,MONTH(MarDom1+20)=3),MarDom1+20,\"\"))","v":"2019-03-16"},{"$f":"IF(DAY(MarDom1)=1,IF(AND(YEAR(MarDom1+14)=AnnoCalendario,MONTH(MarDom1+14)=3),MarDom1+14,\"\"),IF(AND(YEAR(MarDom1+21)=AnnoCalendario,MONTH(MarDom1+21)=3),MarDom1+21,\"\"))","v":"2019-03-17"},null,{"$f":"IF(DAY(AprDom1)=1,IF(AND(YEAR(AprDom1+8)=AnnoCalendario,MONTH(AprDom1+8)=4),AprDom1+8,\"\"),IF(AND(YEAR(AprDom1+15)=AnnoCalendario,MONTH(AprDom1+15)=4),AprDom1+15,\"\"))","v":"2019-04-15"},{"$f":"IF(DAY(AprDom1)=1,IF(AND(YEAR(AprDom1+9)=AnnoCalendario,MONTH(AprDom1+9)=4),AprDom1+9,\"\"),IF(AND(YEAR(AprDom1+16)=AnnoCalendario,MONTH(AprDom1+16)=4),AprDom1+16,\"\"))","v":"2019-04-16"},{"$f":"IF(DAY(AprDom1)=1,IF(AND(YEAR(AprDom1+10)=AnnoCalendario,MONTH(AprDom1+10)=4),AprDom1+10,\"\"),IF(AND(YEAR(AprDom1+17)=AnnoCalendario,MONTH(AprDom1+17)=4),AprDom1+17,\"\"))","v":"2019-04-17"},{"$f":"IF(DAY(AprDom1)=1,IF(AND(YEAR(AprDom1+11)=AnnoCalendario,MONTH(AprDom1+11)=4),AprDom1+11,\"\"),IF(AND(YEAR(AprDom1+18)=AnnoCalendario,MONTH(AprDom1+18)=4),AprDom1+18,\"\"))","v":"2019-04-18"},{"$f":"IF(DAY(AprDom1)=1,IF(AND(YEAR(AprDom1+12)=AnnoCalendario,MONTH(AprDom1+12)=4),AprDom1+12,\"\"),IF(AND(YEAR(AprDom1+19)=AnnoCalendario,MONTH(AprDom1+19)=4),AprDom1+19,\"\"))","v":"2019-04-19"},{"$f":"IF(DAY(AprDom1)=1,IF(AND(YEAR(AprDom1+13)=AnnoCalendario,MONTH(AprDom1+13)=4),AprDom1+13,\"\"),IF(AND(YEAR(AprDom1+20)=AnnoCalendario,MONTH(AprDom1+20)=4),AprDom1+20,\"\"))","v":"2019-04-20"},{"$f":"IF(DAY(AprDom1)=1,IF(AND(YEAR(AprDom1+14)=AnnoCalendario,MONTH(AprDom1+14)=4),AprDom1+14,\"\"),IF(AND(YEAR(AprDom1+21)=AnnoCalendario,MONTH(AprDom1+21)=4),AprDom1+21,\"\"))","v":"2019-04-21"}]
[null,null,{"$f":"IF(DAY(MarDom1)=1,IF(AND(YEAR(MarDom1+15)=AnnoCalendario,MONTH(MarDom1+15)=3),MarDom1+15,\"\"),IF(AND(YEAR(MarDom1+22)=AnnoCalendario,MONTH(MarDom1+22)=3),MarDom1+22,\"\"))","v":"2019-03-18"},{"$f":"IF(DAY(MarDom1)=1,IF(AND(YEAR(MarDom1+16)=AnnoCalendario,MONTH(MarDom1+16)=3),MarDom1+16,\"\"),IF(AND(YEAR(MarDom1+23)=AnnoCalendario,MONTH(MarDom1+23)=3),MarDom1+23,\"\"))","v":"2019-03-19"},{"$f":"IF(DAY(MarDom1)=1,IF(AND(YEAR(MarDom1+17)=AnnoCalendario,MONTH(MarDom1+17)=3),MarDom1+17,\"\"),IF(AND(YEAR(MarDom1+24)=AnnoCalendario,MONTH(MarDom1+24)=3),MarDom1+24,\"\"))","v":"2019-03-20"},{"$f":"IF(DAY(MarDom1)=1,IF(AND(YEAR(MarDom1+18)=AnnoCalendario,MONTH(MarDom1+18)=3),MarDom1+18,\"\"),IF(AND(YEAR(MarDom1+25)=AnnoCalendario,MONTH(MarDom1+25)=3),MarDom1+25,\"\"))","v":"2019-03-21"},{"$f":"IF(DAY(MarDom1)=1,IF(AND(YEAR(MarDom1+19)=AnnoCalendario,MONTH(MarDom1+19)=3),MarDom1+19,\"\"),IF(AND(YEAR(MarDom1+26)=AnnoCalendario,MONTH(MarDom1+26)=3),MarDom1+26,\"\"))","v":"2019-03-22"},{"$f":"IF(DAY(MarDom1)=1,IF(AND(YEAR(MarDom1+20)=AnnoCalendario,MONTH(MarDom1+20)=3),MarDom1+20,\"\"),IF(AND(YEAR(MarDom1+27)=AnnoCalendario,MONTH(MarDom1+27)=3),MarDom1+27,\"\"))","v":"2019-03-23"},{"$f":"IF(DAY(MarDom1)=1,IF(AND(YEAR(MarDom1+21)=AnnoCalendario,MONTH(MarDom1+21)=3),MarDom1+21,\"\"),IF(AND(YEAR(MarDom1+28)=AnnoCalendario,MONTH(MarDom1+28)=3),MarDom1+28,\"\"))","v":"2019-03-24"},null,{"$f":"IF(DAY(AprDom1)=1,IF(AND(YEAR(AprDom1+15)=AnnoCalendario,MONTH(AprDom1+15)=4),AprDom1+15,\"\"),IF(AND(YEAR(AprDom1+22)=AnnoCalendario,MONTH(AprDom1+22)=4),AprDom1+22,\"\"))","v":"2019-04-22"},{"$f":"IF(DAY(AprDom1)=1,IF(AND(YEAR(AprDom1+16)=AnnoCalendario,MONTH(AprDom1+16)=4),AprDom1+16,\"\"),IF(AND(YEAR(AprDom1+23)=AnnoCalendario,MONTH(AprDom1+23)=4),AprDom1+23,\"\"))","v":"2019-04-23"},{"$f":"IF(DAY(AprDom1)=1,IF(AND(YEAR(AprDom1+17)=AnnoCalendario,MONTH(AprDom1+17)=4),AprDom1+17,\"\"),IF(AND(YEAR(AprDom1+24)=AnnoCalendario,MONTH(AprDom1+24)=4),AprDom1+24,\"\"))","v":"2019-04-24"},{"$f":"IF(DAY(AprDom1)=1,IF(AND(YEAR(AprDom1+18)=AnnoCalendario,MONTH(AprDom1+18)=4),AprDom1+18,\"\"),IF(AND(YEAR(AprDom1+25)=AnnoCalendario,MONTH(AprDom1+25)=4),AprDom1+25,\"\"))","v":"2019-04-25"},{"$f":"IF(DAY(AprDom1)=1,IF(AND(YEAR(AprDom1+19)=AnnoCalendario,MONTH(AprDom1+19)=4),AprDom1+19,\"\"),IF(AND(YEAR(AprDom1+26)=AnnoCalendario,MONTH(AprDom1+26)=4),AprDom1+26,\"\"))","v":"2019-04-26"},{"$f":"IF(DAY(AprDom1)=1,IF(AND(YEAR(AprDom1+20)=AnnoCalendario,MONTH(AprDom1+20)=4),AprDom1+20,\"\"),IF(AND(YEAR(AprDom1+27)=AnnoCalendario,MONTH(AprDom1+27)=4),AprDom1+27,\"\"))","v":"2019-04-27"},{"$f":"IF(DAY(AprDom1)=1,IF(AND(YEAR(AprDom1+21)=AnnoCalendario,MONTH(AprDom1+21)=4),AprDom1+21,\"\"),IF(AND(YEAR(AprDom1+28)=AnnoCalendario,MONTH(AprDom1+28)=4),AprDom1+28,\"\"))","v":"2019-04-28"}]
[null,null,{"$f":"IF(DAY(MarDom1)=1,IF(AND(YEAR(MarDom1+22)=AnnoCalendario,MONTH(MarDom1+22)=3),MarDom1+22,\"\"),IF(AND(YEAR(MarDom1+29)=AnnoCalendario,MONTH(MarDom1+29)=3),MarDom1+29,\"\"))","v":"2019-03-25"},{"$f":"IF(DAY(MarDom1)=1,IF(AND(YEAR(MarDom1+23)=AnnoCalendario,MONTH(MarDom1+23)=3),MarDom1+23,\"\"),IF(AND(YEAR(MarDom1+30)=AnnoCalendario,MONTH(MarDom1+30)=3),MarDom1+30,\"\"))","v":"2019-03-26"},{"$f":"IF(DAY(MarDom1)=1,IF(AND(YEAR(MarDom1+24)=AnnoCalendario,MONTH(MarDom1+24)=3),MarDom1+24,\"\"),IF(AND(YEAR(MarDom1+31)=AnnoCalendario,MONTH(MarDom1+31)=3),MarDom1+31,\"\"))","v":"2019-03-27"},{"$f":"IF(DAY(MarDom1)=1,IF(AND(YEAR(MarDom1+25)=AnnoCalendario,MONTH(MarDom1+25)=3),MarDom1+25,\"\"),IF(AND(YEAR(MarDom1+32)=AnnoCalendario,MONTH(MarDom1+32)=3),MarDom1+32,\"\"))","v":"2019-03-28"},{"$f":"IF(DAY(MarDom1)=1,IF(AND(YEAR(MarDom1+26)=AnnoCalendario,MONTH(MarDom1+26)=3),MarDom1+26,\"\"),IF(AND(YEAR(MarDom1+33)=AnnoCalendario,MONTH(MarDom1+33)=3),MarDom1+33,\"\"))","v":"2019-03-29"},{"$f":"IF(DAY(MarDom1)=1,IF(AND(YEAR(MarDom1+27)=AnnoCalendario,MONTH(MarDom1+27)=3),MarDom1+27,\"\"),IF(AND(YEAR(MarDom1+34)=AnnoCalendario,MONTH(MarDom1+34)=3),MarDom1+34,\"\"))","v":"2019-03-30"},{"$f":"IF(DAY(MarDom1)=1,IF(AND(YEAR(MarDom1+28)=AnnoCalendario,MONTH(MarDom1+28)=3),MarDom1+28,\"\"),IF(AND(YEAR(MarDom1+35)=AnnoCalendario,MONTH(MarDom1+35)=3),MarDom1+35,\"\"))","v":"2019-03-31"},null,{"$f":"IF(DAY(AprDom1)=1,IF(AND(YEAR(AprDom1+22)=AnnoCalendario,MONTH(AprDom1+22)=4),AprDom1+22,\"\"),IF(AND(YEAR(AprDom1+29)=AnnoCalendario,MONTH(AprDom1+29)=4),AprDom1+29,\"\"))","v":"2019-04-29"},{"$f":"IF(DAY(AprDom1)=1,IF(AND(YEAR(AprDom1+23)=AnnoCalendario,MONTH(AprDom1+23)=4),AprDom1+23,\"\"),IF(AND(YEAR(AprDom1+30)=AnnoCalendario,MONTH(AprDom1+30)=4),AprDom1+30,\"\"))","v":"2019-04-30"},{"$f":"IF(DAY(AprDom1)=1,IF(AND(YEAR(AprDom1+24)=AnnoCalendario,MONTH(AprDom1+24)=4),AprDom1+24,\"\"),IF(AND(YEAR(AprDom1+31)=AnnoCalendario,MONTH(AprDom1+31)=4),AprDom1+31,\"\"))","v":""},{"$f":"IF(DAY(AprDom1)=1,IF(AND(YEAR(AprDom1+25)=AnnoCalendario,MONTH(AprDom1+25)=4),AprDom1+25,\"\"),IF(AND(YEAR(AprDom1+32)=AnnoCalendario,MONTH(AprDom1+32)=4),AprDom1+32,\"\"))","v":""},{"$f":"IF(DAY(AprDom1)=1,IF(AND(YEAR(AprDom1+26)=AnnoCalendario,MONTH(AprDom1+26)=4),AprDom1+26,\"\"),IF(AND(YEAR(AprDom1+33)=AnnoCalendario,MONTH(AprDom1+33)=4),AprDom1+33,\"\"))","v":""},{"$f":"IF(DAY(AprDom1)=1,IF(AND(YEAR(AprDom1+27)=AnnoCalendario,MONTH(AprDom1+27)=4),AprDom1+27,\"\"),IF(AND(YEAR(AprDom1+34)=AnnoCalendario,MONTH(AprDom1+34)=4),AprDom1+34,\"\"))","v":""},{"$f":"IF(DAY(AprDom1)=1,IF(AND(YEAR(AprDom1+28)=AnnoCalendario,MONTH(AprDom1+28)=4),AprDom1+28,\"\"),IF(AND(YEAR(AprDom1+35)=AnnoCalendario,MONTH(AprDom1+35)=4),AprDom1+35,\"\"))","v":""}]
[null,null,{"$f":"IF(DAY(MarDom1)=1,IF(AND(YEAR(MarDom1+29)=AnnoCalendario,MONTH(MarDom1+29)=3),MarDom1+29,\"\"),IF(AND(YEAR(MarDom1+36)=AnnoCalendario,MONTH(MarDom1+36)=3),MarDom1+36,\"\"))","v":""},{"$f":"IF(DAY(MarDom1)=1,IF(AND(YEAR(MarDom1+30)=AnnoCalendario,MONTH(MarDom1+30)=3),MarDom1+30,\"\"),IF(AND(YEAR(MarDom1+37)=AnnoCalendario,MONTH(MarDom1+37)=3),MarDom1+37,\"\"))","v":""},{"$f":"IF(DAY(MarDom1)=1,IF(AND(YEAR(MarDom1+31)=AnnoCalendario,MONTH(MarDom1+31)=3),MarDom1+31,\"\"),IF(AND(YEAR(MarDom1+38)=AnnoCalendario,MONTH(MarDom1+38)=3),MarDom1+38,\"\"))","v":""},{"$f":"IF(DAY(MarDom1)=1,IF(AND(YEAR(MarDom1+32)=AnnoCalendario,MONTH(MarDom1+32)=3),MarDom1+32,\"\"),IF(AND(YEAR(MarDom1+39)=AnnoCalendario,MONTH(MarDom1+39)=3),MarDom1+39,\"\"))","v":""},{"$f":"IF(DAY(MarDom1)=1,IF(AND(YEAR(MarDom1+33)=AnnoCalendario,MONTH(MarDom1+33)=3),MarDom1+33,\"\"),IF(AND(YEAR(MarDom1+40)=AnnoCalendario,MONTH(MarDom1+40)=3),MarDom1+40,\"\"))","v":""},{"$f":"IF(DAY(MarDom1)=1,IF(AND(YEAR(MarDom1+34)=AnnoCalendario,MONTH(MarDom1+34)=3),MarDom1+34,\"\"),IF(AND(YEAR(MarDom1+41)=AnnoCalendario,MONTH(MarDom1+41)=3),MarDom1+41,\"\"))","v":""},{"$f":"IF(DAY(MarDom1)=1,IF(AND(YEAR(MarDom1+35)=AnnoCalendario,MONTH(MarDom1+35)=3),MarDom1+35,\"\"),IF(AND(YEAR(MarDom1+42)=AnnoCalendario,MONTH(MarDom1+42)=3),MarDom1+42,\"\"))","v":""},null,{"$f":"IF(DAY(AprDom1)=1,IF(AND(YEAR(AprDom1+29)=AnnoCalendario,MONTH(AprDom1+29)=4),AprDom1+29,\"\"),IF(AND(YEAR(AprDom1+36)=AnnoCalendario,MONTH(AprDom1+36)=4),AprDom1+36,\"\"))","v":""},{"$f":"IF(DAY(AprDom1)=1,IF(AND(YEAR(AprDom1+30)=AnnoCalendario,MONTH(AprDom1+30)=4),AprDom1+30,\"\"),IF(AND(YEAR(AprDom1+37)=AnnoCalendario,MONTH(AprDom1+37)=4),AprDom1+37,\"\"))","v":""},{"$f":"IF(DAY(AprDom1)=1,IF(AND(YEAR(AprDom1+31)=AnnoCalendario,MONTH(AprDom1+31)=4),AprDom1+31,\"\"),IF(AND(YEAR(AprDom1+38)=AnnoCalendario,MONTH(AprDom1+38)=4),AprDom1+38,\"\"))","v":""},{"$f":"IF(DAY(AprDom1)=1,IF(AND(YEAR(AprDom1+32)=AnnoCalendario,MONTH(AprDom1+32)=4),AprDom1+32,\"\"),IF(AND(YEAR(AprDom1+39)=AnnoCalendario,MONTH(AprDom1+39)=4),AprDom1+39,\"\"))","v":""},{"$f":"IF(DAY(AprDom1)=1,IF(AND(YEAR(AprDom1+33)=AnnoCalendario,MONTH(AprDom1+33)=4),AprDom1+33,\"\"),IF(AND(YEAR(AprDom1+40)=AnnoCalendario,MONTH(AprDom1+40)=4),AprDom1+40,\"\"))","v":""},{"$f":"IF(DAY(AprDom1)=1,IF(AND(YEAR(AprDom1+34)=AnnoCalendario,MONTH(AprDom1+34)=4),AprDom1+34,\"\"),IF(AND(YEAR(AprDom1+41)=AnnoCalendario,MONTH(AprDom1+41)=4),AprDom1+41,\"\"))","v":""},{"$f":"IF(DAY(AprDom1)=1,IF(AND(YEAR(AprDom1+35)=AnnoCalendario,MONTH(AprDom1+35)=4),AprDom1+35,\"\"),IF(AND(YEAR(AprDom1+42)=AnnoCalendario,MONTH(AprDom1+42)=4),AprDom1+42,\"\"))","v":""}]
[]
[null,null,"MAGGIO",{"$nulls":7},"GIUGNO"]
[null,null,"L","M","M","G","V","S","D",null,"L","M","M","G","V","S","D"]
[null,null,{"$f":"IF(DAY(MagDom1)=1,\"\",IF(AND(YEAR(MagDom1+1)=AnnoCalendario,MONTH(MagDom1+1)=5),MagDom1+1,\"\"))","v":""},{"$f":"IF(DAY(MagDom1)=1,\"\",IF(AND(YEAR(MagDom1+2)=AnnoCalendario,MONTH(MagDom1+2)=5),MagDom1+2,\"\"))","v":""},{"$f":"IF(DAY(MagDom1)=1,\"\",IF(AND(YEAR(MagDom1+3)=AnnoCalendario,MONTH(MagDom1+3)=5),MagDom1+3,\"\"))","v":"2019-05-01"},{"$f":"IF(DAY(MagDom1)=1,\"\",IF(AND(YEAR(MagDom1+4)=AnnoCalendario,MONTH(MagDom1+4)=5),MagDom1+4,\"\"))","v":"2019-05-02"},{"$f":"IF(DAY(MagDom1)=1,\"\",IF(AND(YEAR(MagDom1+5)=AnnoCalendario,MONTH(MagDom1+5)=5),MagDom1+5,\"\"))","v":"2019-05-03"},{"$f":"IF(DAY(MagDom1)=1,\"\",IF(AND(YEAR(MagDom1+6)=AnnoCalendario,MONTH(MagDom1+6)=5),MagDom1+6,\"\"))","v":"2019-05-04"},{"$f":"IF(DAY(MagDom1)=1,IF(AND(YEAR(MagDom1)=AnnoCalendario,MONTH(MagDom1)=5),MagDom1,\"\"),IF(AND(YEAR(MagDom1+7)=AnnoCalendario,MONTH(MagDom1+7)=5),MagDom1+7,\"\"))","v":"2019-05-05"},null,{"$f":"IF(DAY(GiuDom1)=1,\"\",IF(AND(YEAR(GiuDom1+1)=AnnoCalendario,MONTH(GiuDom1+1)=6),GiuDom1+1,\"\"))","v":""},{"$f":"IF(DAY(GiuDom1)=1,\"\",IF(AND(YEAR(GiuDom1+2)=AnnoCalendario,MONTH(GiuDom1+2)=6),GiuDom1+2,\"\"))","v":""},{"$f":"IF(DAY(GiuDom1)=1,\"\",IF(AND(YEAR(GiuDom1+3)=AnnoCalendario,MONTH(GiuDom1+3)=6),GiuDom1+3,\"\"))","v":""},{"$f":"IF(DAY(GiuDom1)=1,\"\",IF(AND(YEAR(GiuDom1+4)=AnnoCalendario,MONTH(GiuDom1+4)=6),GiuDom1+4,\"\"))","v":""},{"$f":"IF(DAY(GiuDom1)=1,\"\",IF(AND(YEAR(GiuDom1+5)=AnnoCalendario,MONTH(GiuDom1+5)=6),GiuDom1+5,\"\"))","v":""},{"$f":"IF(DAY(GiuDom1)=1,\"\",IF(AND(YEAR(GiuDom1+6)=AnnoCalendario,MONTH(GiuDom1+6)=6),GiuDom1+6,\"\"))","v":"2019-06-01"},{"$f":"IF(DAY(GiuDom1)=1,IF(AND(YEAR(GiuDom1)=AnnoCalendario,MONTH(GiuDom1)=6),GiuDom1,\"\"),IF(AND(YEAR(GiuDom1+7)=AnnoCalendario,MONTH(GiuDom1+7)=6),GiuDom1+7,\"\"))","v":"2019-06-02"}]
[null,null,{"$f":"IF(DAY(MagDom1)=1,IF(AND(YEAR(MagDom1+1)=AnnoCalendario,MONTH(MagDom1+1)=5),MagDom1+1,\"\"),IF(AND(YEAR(MagDom1+8)=AnnoCalendario,MONTH(MagDom1+8)=5),MagDom1+8,\"\"))","v":"2019-05-06"},{"$f":"IF(DAY(MagDom1)=1,IF(AND(YEAR(MagDom1+2)=AnnoCalendario,MONTH(MagDom1+2)=5),MagDom1+2,\"\"),IF(AND(YEAR(MagDom1+9)=AnnoCalendario,MONTH(MagDom1+9)=5),MagDom1+9,\"\"))","v":"2019-05-07"},{"$f":"IF(DAY(MagDom1)=1,IF(AND(YEAR(MagDom1+3)=AnnoCalendario,MONTH(MagDom1+3)=5),MagDom1+3,\"\"),IF(AND(YEAR(MagDom1+10)=AnnoCalendario,MONTH(MagDom1+10)=5),MagDom1+10,\"\"))","v":"2019-05-08"},{"$f":"IF(DAY(MagDom1)=1,IF(AND(YEAR(MagDom1+4)=AnnoCalendario,MONTH(MagDom1+4)=5),MagDom1+4,\"\"),IF(AND(YEAR(MagDom1+11)=AnnoCalendario,MONTH(MagDom1+11)=5),MagDom1+11,\"\"))","v":"2019-05-09"},{"$f":"IF(DAY(MagDom1)=1,IF(AND(YEAR(MagDom1+5)=AnnoCalendario,MONTH(MagDom1+5)=5),MagDom1+5,\"\"),IF(AND(YEAR(MagDom1+12)=AnnoCalendario,MONTH(MagDom1+12)=5),MagDom1+12,\"\"))","v":"2019-05-10"},{"$f":"IF(DAY(MagDom1)=1,IF(AND(YEAR(MagDom1+6)=AnnoCalendario,MONTH(MagDom1+6)=5),MagDom1+6,\"\"),IF(AND(YEAR(MagDom1+13)=AnnoCalendario,MONTH(MagDom1+13)=5),MagDom1+13,\"\"))","v":"2019-05-11"},{"$f":"IF(DAY(MagDom1)=1,IF(AND(YEAR(MagDom1+7)=AnnoCalendario,MONTH(MagDom1+7)=5),MagDom1+7,\"\"),IF(AND(YEAR(MagDom1+14)=AnnoCalendario,MONTH(MagDom1+14)=5),MagDom1+14,\"\"))","v":"2019-05-12"},null,{"$f":"IF(DAY(GiuDom1)=1,IF(AND(YEAR(GiuDom1+1)=AnnoCalendario,MONTH(GiuDom1+1)=6),GiuDom1+1,\"\"),IF(AND(YEAR(GiuDom1+8)=AnnoCalendario,MONTH(GiuDom1+8)=6),GiuDom1+8,\"\"))","v":"2019-06-03"},{"$f":"IF(DAY(GiuDom1)=1,IF(AND(YEAR(GiuDom1+2)=AnnoCalendario,MONTH(GiuDom1+2)=6),GiuDom1+2,\"\"),IF(AND(YEAR(GiuDom1+9)=AnnoCalendario,MONTH(GiuDom1+9)=6),GiuDom1+9,\"\"))","v":"2019-06-04"},{"$f":"IF(DAY(GiuDom1)=1,IF(AND(YEAR(GiuDom1+3)=AnnoCalendario,MONTH(GiuDom1+3)=6),GiuDom1+3,\"\"),IF(AND(YEAR(GiuDom1+10)=AnnoCalendario,MONTH(GiuDom1+10)=6),GiuDom1+10,\"\"))","v":"2019-06-05"},{"$f":"IF(DAY(GiuDom1)=1,IF(AND(YEAR(GiuDom1+4)=AnnoCalendario,MONTH(GiuDom1+4)=6),GiuDom1+4,\"\"),IF(AND(YEAR(GiuDom1+11)=AnnoCalendario,MONTH(GiuDom1+11)=6),GiuDom1+11,\"\"))","v":"2019-06-06"},{"$f":"IF(DAY(GiuDom1)=1,IF(AND(YEAR(GiuDom1+5)=AnnoCalendario,MONTH(GiuDom1+5)=6),GiuDom1+5,\"\"),IF(AND(YEAR(GiuDom1+12)=AnnoCalendario,MONTH(GiuDom1+12)=6),GiuDom1+12,\"\"))","v":"2019-06-07"},{"$f":"IF(DAY(GiuDom1)=1,IF(AND(YEAR(GiuDom1+6)=AnnoCalendario,MONTH(GiuDom1+6)=6),GiuDom1+6,\"\"),IF(AND(YEAR(GiuDom1+13)=AnnoCalendario,MONTH(GiuDom1+13)=6),GiuDom1+13,\"\"))","v":"2019-06-08"},{"$f":"IF(DAY(GiuDom1)=1,IF(AND(YEAR(GiuDom1+7)=AnnoCalendario,MONTH(GiuDom1+7)=6),GiuDom1+7,\"\"),IF(AND(YEAR(GiuDom1+14)=AnnoCalendario,MONTH(GiuDom1+14)=6),GiuDom1+14,\"\"))","v":"2019-06-09"}]
[null,null,{"$f":"IF(DAY(MagDom1)=1,IF(AND(YEAR(MagDom1+8)=AnnoCalendario,MONTH(MagDom1+8)=5),MagDom1+8,\"\"),IF(AND(YEAR(MagDom1+15)=AnnoCalendario,MONTH(MagDom1+15)=5),MagDom1+15,\"\"))","v":"2019-05-13"},{"$f":"IF(DAY(MagDom1)=1,IF(AND(YEAR(MagDom1+9)=AnnoCalendario,MONTH(MagDom1+9)=5),MagDom1+9,\"\"),IF(AND(YEAR(MagDom1+16)=AnnoCalendario,MONTH(MagDom1+16)=5),MagDom1+16,\"\"))","v":"2019-05-14"},{"$f":"IF(DAY(MagDom1)=1,IF(AND(YEAR(MagDom1+10)=AnnoCalendario,MONTH(MagDom1+10)=5),MagDom1+10,\"\"),IF(AND(YEAR(MagDom1+17)=AnnoCalendario,MONTH(MagDom1+17)=5),MagDom1+17,\"\"))","v":"2019-05-15"},{"$f":"IF(DAY(MagDom1)=1,IF(AND(YEAR(MagDom1+11)=AnnoCalendario,MONTH(MagDom1+11)=5),MagDom1+11,\"\"),IF(AND(YEAR(MagDom1+18)=AnnoCalendario,MONTH(MagDom1+18)=5),MagDom1+18,\"\"))","v":"2019-05-16"},{"$f":"IF(DAY(MagDom1)=1,IF(AND(YEAR(MagDom1+12)=AnnoCalendario,MONTH(MagDom1+12)=5),MagDom1+12,\"\"),IF(AND(YEAR(MagDom1+19)=AnnoCalendario,MONTH(MagDom1+19)=5),MagDom1+19,\"\"))","v":"2019-05-17"},{"$f":"IF(DAY(MagDom1)=1,IF(AND(YEAR(MagDom1+13)=AnnoCalendario,MONTH(MagDom1+13)=5),MagDom1+13,\"\"),IF(AND(YEAR(MagDom1+20)=AnnoCalendario,MONTH(MagDom1+20)=5),MagDom1+20,\"\"))","v":"2019-05-18"},{"$f":"IF(DAY(MagDom1)=1,IF(AND(YEAR(MagDom1+14)=AnnoCalendario,MONTH(MagDom1+14)=5),MagDom1+14,\"\"),IF(AND(YEAR(MagDom1+21)=AnnoCalendario,MONTH(MagDom1+21)=5),MagDom1+21,\"\"))","v":"2019-05-19"},null,{"$f":"IF(DAY(GiuDom1)=1,IF(AND(YEAR(GiuDom1+8)=AnnoCalendario,MONTH(GiuDom1+8)=6),GiuDom1+8,\"\"),IF(AND(YEAR(GiuDom1+15)=AnnoCalendario,MONTH(GiuDom1+15)=6),GiuDom1+15,\"\"))","v":"2019-06-10"},{"$f":"IF(DAY(GiuDom1)=1,IF(AND(YEAR(GiuDom1+9)=AnnoCalendario,MONTH(GiuDom1+9)=6),GiuDom1+9,\"\"),IF(AND(YEAR(GiuDom1+16)=AnnoCalendario,MONTH(GiuDom1+16)=6),GiuDom1+16,\"\"))","v":"2019-06-11"},{"$f":"IF(DAY(GiuDom1)=1,IF(AND(YEAR(GiuDom1+10)=AnnoCalendario,MONTH(GiuDom1+10)=6),GiuDom1+10,\"\"),IF(AND(YEAR(GiuDom1+17)=AnnoCalendario,MONTH(GiuDom1+17)=6),GiuDom1+17,\"\"))","v":"2019-06-12"},{"$f":"IF(DAY(GiuDom1)=1,IF(AND(YEAR(GiuDom1+11)=AnnoCalendario,MONTH(GiuDom1+11)=6),GiuDom1+11,\"\"),IF(AND(YEAR(GiuDom1+18)=AnnoCalendario,MONTH(GiuDom1+18)=6),GiuDom1+18,\"\"))","v":"2019-06-13"},{"$f":"IF(DAY(GiuDom1)=1,IF(AND(YEAR(GiuDom1+12)=AnnoCalendario,MONTH(GiuDom1+12)=6),GiuDom1+12,\"\"),IF(AND(YEAR(GiuDom1+19)=AnnoCalendario,MONTH(GiuDom1+19)=6),GiuDom1+19,\"\"))","v":"2019-06-14"},{"$f":"IF(DAY(GiuDom1)=1,IF(AND(YEAR(GiuDom1+13)=AnnoCalendario,MONTH(GiuDom1+13)=6),GiuDom1+13,\"\"),IF(AND(YEAR(GiuDom1+20)=AnnoCalendario,MONTH(GiuDom1+20)=6),GiuDom1+20,\"\"))","v":"2019-06-15"},{"$f":"IF(DAY(GiuDom1)=1,IF(AND(YEAR(GiuDom1+14)=AnnoCalendario,MONTH(GiuDom1+14)=6),GiuDom1+14,\"\"),IF(AND(YEAR(GiuDom1+21)=AnnoCalendario,MONTH(GiuDom1+21)=6),GiuDom1+21,\"\"))","v":"2019-06-16"}]
[null,null,{"$f":"IF(DAY(MagDom1)=1,IF(AND(YEAR(MagDom1+15)=AnnoCalendario,MONTH(MagDom1+15)=5),MagDom1+15,\"\"),IF(AND(YEAR(MagDom1+22)=AnnoCalendario,MONTH(MagDom1+22)=5),MagDom1+22,\"\"))","v":"2019-05-20"},{"$f":"IF(DAY(MagDom1)=1,IF(AND(YEAR(MagDom1+16)=AnnoCalendario,MONTH(MagDom1+16)=5),MagDom1+16,\"\"),IF(AND(YEAR(MagDom1+23)=AnnoCalendario,MONTH(MagDom1+23)=5),MagDom1+23,\"\"))","v":"2019-05-21"},{"$f":"IF(DAY(MagDom1)=1,IF(AND(YEAR(MagDom1+17)=AnnoCalendario,MONTH(MagDom1+17)=5),MagDom1+17,\"\"),IF(AND(YEAR(MagDom1+24)=AnnoCalendario,MONTH(MagDom1+24)=5),MagDom1+24,\"\"))","v":"2019-05-22"},{"$f":"IF(DAY(MagDom1)=1,IF(AND(YEAR(MagDom1+18)=AnnoCalendario,MONTH(MagDom1+18)=5),MagDom1+18,\"\"),IF(AND(YEAR(MagDom1+25)=AnnoCalendario,MONTH(MagDom1+25)=5),MagDom1+25,\"\"))","v":"2019-05-23"},{"$f":"IF(DAY(MagDom1)=1,IF(AND(YEAR(MagDom1+19)=AnnoCalendario,MONTH(MagDom1+19)=5),MagDom1+19,\"\"),IF(AND(YEAR(MagDom1+26)=AnnoCalendario,MONTH(MagDom1+26)=5),MagDom1+26,\"\"))","v":"2019-05-24"},{"$f":"IF(DAY(MagDom1)=1,IF(AND(YEAR(MagDom1+20)=AnnoCalendario,MONTH(MagDom1+20)=5),MagDom1+20,\"\"),IF(AND(YEAR(MagDom1+27)=AnnoCalendario,MONTH(MagDom1+27)=5),MagDom1+27,\"\"))","v":"2019-05-25"},{"$f":"IF(DAY(MagDom1)=1,IF(AND(YEAR(MagDom1+21)=AnnoCalendario,MONTH(MagDom1+21)=5),MagDom1+21,\"\"),IF(AND(YEAR(MagDom1+28)=AnnoCalendario,MONTH(MagDom1+28)=5),MagDom1+28,\"\"))","v":"2019-05-26"},null,{"$f":"IF(DAY(GiuDom1)=1,IF(AND(YEAR(GiuDom1+15)=AnnoCalendario,MONTH(GiuDom1+15)=6),GiuDom1+15,\"\"),IF(AND(YEAR(GiuDom1+22)=AnnoCalendario,MONTH(GiuDom1+22)=6),GiuDom1+22,\"\"))","v":"2019-06-17"},{"$f":"IF(DAY(GiuDom1)=1,IF(AND(YEAR(GiuDom1+16)=AnnoCalendario,MONTH(GiuDom1+16)=6),GiuDom1+16,\"\"),IF(AND(YEAR(GiuDom1+23)=AnnoCalendario,MONTH(GiuDom1+23)=6),GiuDom1+23,\"\"))","v":"2019-06-18"},{"$f":"IF(DAY(GiuDom1)=1,IF(AND(YEAR(GiuDom1+17)=AnnoCalendario,MONTH(GiuDom1+17)=6),GiuDom1+17,\"\"),IF(AND(YEAR(GiuDom1+24)=AnnoCalendario,MONTH(GiuDom1+24)=6),GiuDom1+24,\"\"))","v":"2019-06-19"},{"$f":"IF(DAY(GiuDom1)=1,IF(AND(YEAR(GiuDom1+18)=AnnoCalendario,MONTH(GiuDom1+18)=6),GiuDom1+18,\"\"),IF(AND(YEAR(GiuDom1+25)=AnnoCalendario,MONTH(GiuDom1+25)=6),GiuDom1+25,\"\"))","v":"2019-06-20"},{"$f":"IF(DAY(GiuDom1)=1,IF(AND(YEAR(GiuDom1+19)=AnnoCalendario,MONTH(GiuDom1+19)=6),GiuDom1+19,\"\"),IF(AND(YEAR(GiuDom1+26)=AnnoCalendario,MONTH(GiuDom1+26)=6),GiuDom1+26,\"\"))","v":"2019-06-21"},{"$f":"IF(DAY(GiuDom1)=1,IF(AND(YEAR(GiuDom1+20)=AnnoCalendario,MONTH(GiuDom1+20)=6),GiuDom1+20,\"\"),IF(AND(YEAR(GiuDom1+27)=AnnoCalendario,MONTH(GiuDom1+27)=6),GiuDom1+27,\"\"))","v":"2019-06-22"},{"$f":"IF(DAY(GiuDom1)=1,IF(AND(YEAR(GiuDom1+21)=AnnoCalendario,MONTH(GiuDom1+21)=6),GiuDom1+21,\"\"),IF(AND(YEAR(GiuDom1+28)=AnnoCalendario,MONTH(GiuDom1+28)=6),GiuDom1+28,\"\"))","v":"2019-06-23"}]
[null,null,{"$f":"IF(DAY(MagDom1)=1,IF(AND(YEAR(MagDom1+22)=AnnoCalendario,MONTH(MagDom1+22)=5),MagDom1+22,\"\"),IF(AND(YEAR(MagDom1+29)=AnnoCalendario,MONTH(MagDom1+29)=5),MagDom1+29,\"\"))","v":"2019-05-27"},{"$f":"IF(DAY(MagDom1)=1,IF(AND(YEAR(MagDom1+23)=AnnoCalendario,MONTH(MagDom1+23)=5),MagDom1+23,\"\"),IF(AND(YEAR(MagDom1+30)=AnnoCalendario,MONTH(MagDom1+30)=5),MagDom1+30,\"\"))","v":"2019-05-28"},{"$f":"IF(DAY(MagDom1)=1,IF(AND(YEAR(MagDom1+24)=AnnoCalendario,MONTH(MagDom1+24)=5),MagDom1+24,\"\"),IF(AND(YEAR(MagDom1+31)=AnnoCalendario,MONTH(MagDom1+31)=5),MagDom1+31,\"\"))","v":"2019-05-29"},{"$f":"IF(DAY(MagDom1)=1,IF(AND(YEAR(MagDom1+25)=AnnoCalendario,MONTH(MagDom1+25)=5),MagDom1+25,\"\"),IF(AND(YEAR(MagDom1+32)=AnnoCalendario,MONTH(MagDom1+32)=5),MagDom1+32,\"\"))","v":"2019-05-30"},{"$f":"IF(DAY(MagDom1)=1,IF(AND(YEAR(MagDom1+26)=AnnoCalendario,MONTH(MagDom1+26)=5),MagDom1+26,\"\"),IF(AND(YEAR(MagDom1+33)=AnnoCalendario,MONTH(MagDom1+33)=5),MagDom1+33,\"\"))","v":"2019-05-31"},{"$f":"IF(DAY(MagDom1)=1,IF(AND(YEAR(MagDom1+27)=AnnoCalendario,MONTH(MagDom1+27)=5),MagDom1+27,\"\"),IF(AND(YEAR(MagDom1+34)=AnnoCalendario,MONTH(MagDom1+34)=5),MagDom1+34,\"\"))","v":""},{"$f":"IF(DAY(MagDom1)=1,IF(AND(YEAR(MagDom1+28)=AnnoCalendario,MONTH(MagDom1+28)=5),MagDom1+28,\"\"),IF(AND(YEAR(MagDom1+35)=AnnoCalendario,MONTH(MagDom1+35)=5),MagDom1+35,\"\"))","v":""},null,{"$f":"IF(DAY(GiuDom1)=1,IF(AND(YEAR(GiuDom1+22)=AnnoCalendario,MONTH(GiuDom1+22)=6),GiuDom1+22,\"\"),IF(AND(YEAR(GiuDom1+29)=AnnoCalendario,MONTH(GiuDom1+29)=6),GiuDom1+29,\"\"))","v":"2019-06-24"},{"$f":"IF(DAY(GiuDom1)=1,IF(AND(YEAR(GiuDom1+23)=AnnoCalendario,MONTH(GiuDom1+23)=6),GiuDom1+23,\"\"),IF(AND(YEAR(GiuDom1+30)=AnnoCalendario,MONTH(GiuDom1+30)=6),GiuDom1+30,\"\"))","v":"2019-06-25"},{"$f":"IF(DAY(GiuDom1)=1,IF(AND(YEAR(GiuDom1+24)=AnnoCalendario,MONTH(GiuDom1+24)=6),GiuDom1+24,\"\"),IF(AND(YEAR(GiuDom1+31)=AnnoCalendario,MONTH(GiuDom1+31)=6),GiuDom1+31,\"\"))","v":"2019-06-26"},{"$f":"IF(DAY(GiuDom1)=1,IF(AND(YEAR(GiuDom1+25)=AnnoCalendario,MONTH(GiuDom1+25)=6),GiuDom1+25,\"\"),IF(AND(YEAR(GiuDom1+32)=AnnoCalendario,MONTH(GiuDom1+32)=6),GiuDom1+32,\"\"))","v":"2019-06-27"},{"$f":"IF(DAY(GiuDom1)=1,IF(AND(YEAR(GiuDom1+26)=AnnoCalendario,MONTH(GiuDom1+26)=6),GiuDom1+26,\"\"),IF(AND(YEAR(GiuDom1+33)=AnnoCalendario,MONTH(GiuDom1+33)=6),GiuDom1+33,\"\"))","v":"2019-06-28"},{"$f":"IF(DAY(GiuDom1)=1,IF(AND(YEAR(GiuDom1+27)=AnnoCalendario,MONTH(GiuDom1+27)=6),GiuDom1+27,\"\"),IF(AND(YEAR(GiuDom1+34)=AnnoCalendario,MONTH(GiuDom1+34)=6),GiuDom1+34,\"\"))","v":"2019-06-29"},{"$f":"IF(DAY(GiuDom1)=1,IF(AND(YEAR(GiuDom1+28)=AnnoCalendario,MONTH(GiuDom1+28)=6),GiuDom1+28,\"\"),IF(AND(YEAR(GiuDom1+35)=AnnoCalendario,MONTH(GiuDom1+35)=6),GiuDom1+35,\"\"))","v":"2019-06-30"}]
[null,null,{"$f":"IF(DAY(MagDom1)=1,IF(AND(YEAR(MagDom1+29)=AnnoCalendario,MONTH(MagDom1+29)=5),MagDom1+29,\"\"),IF(AND(YEAR(MagDom1+36)=AnnoCalendario,MONTH(MagDom1+36)=5),MagDom1+36,\"\"))","v":""},{"$f":"IF(DAY(MagDom1)=1,IF(AND(YEAR(MagDom1+30)=AnnoCalendario,MONTH(MagDom1+30)=5),MagDom1+30,\"\"),IF(AND(YEAR(MagDom1+37)=AnnoCalendario,MONTH(MagDom1+37)=5),MagDom1+37,\"\"))","v":""},{"$f":"IF(DAY(MagDom1)=1,IF(AND(YEAR(MagDom1+31)=AnnoCalendario,MONTH(MagDom1+31)=5),MagDom1+31,\"\"),IF(AND(YEAR(MagDom1+38)=AnnoCalendario,MONTH(MagDom1+38)=5),MagDom1+38,\"\"))","v":""},{"$f":"IF(DAY(MagDom1)=1,IF(AND(YEAR(MagDom1+32)=AnnoCalendario,MONTH(MagDom1+32)=5),MagDom1+32,\"\"),IF(AND(YEAR(MagDom1+39)=AnnoCalendario,MONTH(MagDom1+39)=5),MagDom1+39,\"\"))","v":""},{"$f":"IF(DAY(MagDom1)=1,IF(AND(YEAR(MagDom1+33)=AnnoCalendario,MONTH(MagDom1+33)=5),MagDom1+33,\"\"),IF(AND(YEAR(MagDom1+40)=AnnoCalendario,MONTH(MagDom1+40)=5),MagDom1+40,\"\"))","v":""},{"$f":"IF(DAY(MagDom1)=1,IF(AND(YEAR(MagDom1+34)=AnnoCalendario,MONTH(MagDom1+34)=5),MagDom1+34,\"\"),IF(AND(YEAR(MagDom1+41)=AnnoCalendario,MONTH(MagDom1+41)=5),MagDom1+41,\"\"))","v":""},{"$f":"IF(DAY(MagDom1)=1,IF(AND(YEAR(MagDom1+35)=AnnoCalendario,MONTH(MagDom1+35)=5),MagDom1+35,\"\"),IF(AND(YEAR(MagDom1+42)=AnnoCalendario,MONTH(MagDom1+42)=5),MagDom1+42,\"\"))","v":""},null,{"$f":"IF(DAY(GiuDom1)=1,IF(AND(YEAR(GiuDom1+29)=AnnoCalendario,MONTH(GiuDom1+29)=6),GiuDom1+29,\"\"),IF(AND(YEAR(GiuDom1+36)=AnnoCalendario,MONTH(GiuDom1+36)=6),GiuDom1+36,\"\"))","v":""},{"$f":"IF(DAY(GiuDom1)=1,IF(AND(YEAR(GiuDom1+30)=AnnoCalendario,MONTH(GiuDom1+30)=6),GiuDom1+30,\"\"),IF(AND(YEAR(GiuDom1+37)=AnnoCalendario,MONTH(GiuDom1+37)=6),GiuDom1+37,\"\"))","v":""},{"$f":"IF(DAY(GiuDom1)=1,IF(AND(YEAR(GiuDom1+31)=AnnoCalendario,MONTH(GiuDom1+31)=6),GiuDom1+31,\"\"),IF(AND(YEAR(GiuDom1+38)=AnnoCalendario,MONTH(GiuDom1+38)=6),GiuDom1+38,\"\"))","v":""},{"$f":"IF(DAY(GiuDom1)=1,IF(AND(YEAR(GiuDom1+32)=AnnoCalendario,MONTH(GiuDom1+32)=6),GiuDom1+32,\"\"),IF(AND(YEAR(GiuDom1+39)=AnnoCalendario,MONTH(GiuDom1+39)=6),GiuDom1+39,\"\"))","v":""},{"$f":"IF(DAY(GiuDom1)=1,IF(AND(YEAR(GiuDom1+33)=AnnoCalendario,MONTH(GiuDom1+33)=6),GiuDom1+33,\"\"),IF(AND(YEAR(GiuDom1+40)=AnnoCalendario,MONTH(GiuDom1+40)=6),GiuDom1+40,\"\"))","v":""},{"$f":"IF(DAY(GiuDom1)=1,IF(AND(YEAR(GiuDom1+34)=AnnoCalendario,MONTH(GiuDom1+34)=6),GiuDom1+34,\"\"),IF(AND(YEAR(GiuDom1+41)=AnnoCalendario,MONTH(GiuDom1+41)=6),GiuDom1+41,\"\"))","v":""},{"$f":"IF(DAY(GiuDom1)=1,IF(AND(YEAR(GiuDom1+35)=AnnoCalendario,MONTH(GiuDom1+35)=6),GiuDom1+35,\"\"),IF(AND(YEAR(GiuDom1+42)=AnnoCalendario,MONTH(GiuDom1+42)=6),GiuDom1+42,\"\"))","v":""}]
[]
[null,null,"LUGLIO",{"$nulls":7},"AGOSTO"]
[null,null,"L","M","M","G","V","S","D",null,"L","M","M","G","V","S","D"]
[null,null,{"$f":"IF(DAY(LugDom1)=1,\"\",IF(AND(YEAR(LugDom1+1)=AnnoCalendario,MONTH(LugDom1+1)=7),LugDom1+1,\"\"))","v":"2019-07-01"},{"$f":"IF(DAY(LugDom1)=1,\"\",IF(AND(YEAR(LugDom1+2)=AnnoCalendario,MONTH(LugDom1+2)=7),LugDom1+2,\"\"))","v":"2019-07-02"},{"$f":"IF(DAY(LugDom1)=1,\"\",IF(AND(YEAR(LugDom1+3)=AnnoCalendario,MONTH(LugDom1+3)=7),LugDom1+3,\"\"))","v":"2019-07-03"},{"$f":"IF(DAY(LugDom1)=1,\"\",IF(AND(YEAR(LugDom1+4)=AnnoCalendario,MONTH(LugDom1+4)=7),LugDom1+4,\"\"))","v":"2019-07-04"},{"$f":"IF(DAY(LugDom1)=1,\"\",IF(AND(YEAR(LugDom1+5)=AnnoCalendario,MONTH(LugDom1+5)=7),LugDom1+5,\"\"))","v":"2019-07-05"},{"$f":"IF(DAY(LugDom1)=1,\"\",IF(AND(YEAR(LugDom1+6)=AnnoCalendario,MONTH(LugDom1+6)=7),LugDom1+6,\"\"))","v":"2019-07-06"},{"$f":"IF(DAY(LugDom1)=1,IF(AND(YEAR(LugDom1)=AnnoCalendario,MONTH(LugDom1)=7),LugDom1,\"\"),IF(AND(YEAR(LugDom1+7)=AnnoCalendario,MONTH(LugDom1+7)=7),LugDom1+7,\"\"))","v":"2019-07-07"},null,{"$f":"IF(DAY(AgoDom1)=1,\"\",IF(AND(YEAR(AgoDom1+1)=AnnoCalendario,MONTH(AgoDom1+1)=8),AgoDom1+1,\"\"))","v":""},{"$f":"IF(DAY(AgoDom1)=1,\"\",IF(AND(YEAR(AgoDom1+2)=AnnoCalendario,MONTH(AgoDom1+2)=8),AgoDom1+2,\"\"))","v":""},{"$f":"IF(DAY(AgoDom1)=1,\"\",IF(AND(YEAR(AgoDom1+3)=AnnoCalendario,MONTH(AgoDom1+3)=8),AgoDom1+3,\"\"))","v":""},{"$f":"IF(DAY(AgoDom1)=1,\"\",IF(AND(YEAR(AgoDom1+4)=AnnoCalendario,MONTH(AgoDom1+4)=8),AgoDom1+4,\"\"))","v":"2019-08-01"},{"$f":"IF(DAY(AgoDom1)=1,\"\",IF(AND(YEAR(AgoDom1+5)=AnnoCalendario,MONTH(AgoDom1+5)=8),AgoDom1+5,\"\"))","v":"2019-08-02"},{"$f":"IF(DAY(AgoDom1)=1,\"\",IF(AND(YEAR(AgoDom1+6)=AnnoCalendario,MONTH(AgoDom1+6)=8),AgoDom1+6,\"\"))","v":"2019-08-03"},{"$f":"IF(DAY(AgoDom1)=1,IF(AND(YEAR(AgoDom1)=AnnoCalendario,MONTH(AgoDom1)=8),AgoDom1,\"\"),IF(AND(YEAR(AgoDom1+7)=AnnoCalendario,MONTH(AgoDom1+7)=8),AgoDom1+7,\"\"))","v":"2019-08-04"}]
[null,null,{"$f":"IF(DAY(LugDom1)=1,IF(AND(YEAR(LugDom1+1)=AnnoCalendario,MONTH(LugDom1+1)=7),LugDom1+1,\"\"),IF(AND(YEAR(LugDom1+8)=AnnoCalendario,MONTH(LugDom1+8)=7),LugDom1+8,\"\"))","v":"2019-07-08"},{"$f":"IF(DAY(LugDom1)=1,IF(AND(YEAR(LugDom1+2)=AnnoCalendario,MONTH(LugDom1+2)=7),LugDom1+2,\"\"),IF(AND(YEAR(LugDom1+9)=AnnoCalendario,MONTH(LugDom1+9)=7),LugDom1+9,\"\"))","v":"2019-07-09"},{"$f":"IF(DAY(LugDom1)=1,IF(AND(YEAR(LugDom1+3)=AnnoCalendario,MONTH(LugDom1+3)=7),LugDom1+3,\"\"),IF(AND(YEAR(LugDom1+10)=AnnoCalendario,MONTH(LugDom1+10)=7),LugDom1+10,\"\"))","v":"2019-07-10"},{"$f":"IF(DAY(LugDom1)=1,IF(AND(YEAR(LugDom1+4)=AnnoCalendario,MONTH(LugDom1+4)=7),LugDom1+4,\"\"),IF(AND(YEAR(LugDom1+11)=AnnoCalendario,MONTH(LugDom1+11)=7),LugDom1+11,\"\"))","v":"2019-07-11"},{"$f":"IF(DAY(LugDom1)=1,IF(AND(YEAR(LugDom1+5)=AnnoCalendario,MONTH(LugDom1+5)=7),LugDom1+5,\"\"),IF(AND(YEAR(LugDom1+12)=AnnoCalendario,MONTH(LugDom1+12)=7),LugDom1+12,\"\"))","v":"2019-07-12"},{"$f":"IF(DAY(LugDom1)=1,IF(AND(YEAR(LugDom1+6)=AnnoCalendario,MONTH(LugDom1+6)=7),LugDom1+6,\"\"),IF(AND(YEAR(LugDom1+13)=AnnoCalendario,MONTH(LugDom1+13)=7),LugDom1+13,\"\"))","v":"2019-07-13"},{"$f":"IF(DAY(LugDom1)=1,IF(AND(YEAR(LugDom1+7)=AnnoCalendario,MONTH(LugDom1+7)=7),LugDom1+7,\"\"),IF(AND(YEAR(LugDom1+14)=AnnoCalendario,MONTH(LugDom1+14)=7),LugDom1+14,\"\"))","v":"2019-07-14"},null,{"$f":"IF(DAY(AgoDom1)=1,IF(AND(YEAR(AgoDom1+1)=AnnoCalendario,MONTH(AgoDom1+1)=8),AgoDom1+1,\"\"),IF(AND(YEAR(AgoDom1+8)=AnnoCalendario,MONTH(AgoDom1+8)=8),AgoDom1+8,\"\"))","v":"2019-08-05"},{"$f":"IF(DAY(AgoDom1)=1,IF(AND(YEAR(AgoDom1+2)=AnnoCalendario,MONTH(AgoDom1+2)=8),AgoDom1+2,\"\"),IF(AND(YEAR(AgoDom1+9)=AnnoCalendario,MONTH(AgoDom1+9)=8),AgoDom1+9,\"\"))","v":"2019-08-06"},{"$f":"IF(DAY(AgoDom1)=1,IF(AND(YEAR(AgoDom1+3)=AnnoCalendario,MONTH(AgoDom1+3)=8),AgoDom1+3,\"\"),IF(AND(YEAR(AgoDom1+10)=AnnoCalendario,MONTH(AgoDom1+10)=8),AgoDom1+10,\"\"))","v":"2019-08-07"},{"$f":"IF(DAY(AgoDom1)=1,IF(AND(YEAR(AgoDom1+4)=AnnoCalendario,MONTH(AgoDom1+4)=8),AgoDom1+4,\"\"),IF(AND(YEAR(AgoDom1+11)=AnnoCalendario,MONTH(AgoDom1+11)=8),AgoDom1+11,\"\"))","v":"2019-08-08"},{"$f":"IF(DAY(AgoDom1)=1,IF(AND(YEAR(AgoDom1+5)=AnnoCalendario,MONTH(AgoDom1+5)=8),AgoDom1+5,\"\"),IF(AND(YEAR(AgoDom1+12)=AnnoCalendario,MONTH(AgoDom1+12)=8),AgoDom1+12,\"\"))","v":"2019-08-09"},{"$f":"IF(DAY(AgoDom1)=1,IF(AND(YEAR(AgoDom1+6)=AnnoCalendario,MONTH(AgoDom1+6)=8),AgoDom1+6,\"\"),IF(AND(YEAR(AgoDom1+13)=AnnoCalendario,MONTH(AgoDom1+13)=8),AgoDom1+13,\"\"))","v":"2019-08-10"},{"$f":"IF(DAY(AgoDom1)=1,IF(AND(YEAR(AgoDom1+7)=AnnoCalendario,MONTH(AgoDom1+7)=8),AgoDom1+7,\"\"),IF(AND(YEAR(AgoDom1+14)=AnnoCalendario,MONTH(AgoDom1+14)=8),AgoDom1+14,\"\"))","v":"2019-08-11"}]
[null,null,{"$f":"IF(DAY(LugDom1)=1,IF(AND(YEAR(LugDom1+8)=AnnoCalendario,MONTH(LugDom1+8)=7),LugDom1+8,\"\"),IF(AND(YEAR(LugDom1+15)=AnnoCalendario,MONTH(LugDom1+15)=7),LugDom1+15,\"\"))","v":"2019-07-15"},{"$f":"IF(DAY(LugDom1)=1,IF(AND(YEAR(LugDom1+9)=AnnoCalendario,MONTH(LugDom1+9)=7),LugDom1+9,\"\"),IF(AND(YEAR(LugDom1+16)=AnnoCalendario,MONTH(LugDom1+16)=7),LugDom1+16,\"\"))","v":"2019-07-16"},{"$f":"IF(DAY(LugDom1)=1,IF(AND(YEAR(LugDom1+10)=AnnoCalendario,MONTH(LugDom1+10)=7),LugDom1+10,\"\"),IF(AND(YEAR(LugDom1+17)=AnnoCalendario,MONTH(LugDom1+17)=7),LugDom1+17,\"\"))","v":"2019-07-17"},{"$f":"IF(DAY(LugDom1)=1,IF(AND(YEAR(LugDom1+11)=AnnoCalendario,MONTH(LugDom1+11)=7),LugDom1+11,\"\"),IF(AND(YEAR(LugDom1+18)=AnnoCalendario,MONTH(LugDom1+18)=7),LugDom1+18,\"\"))","v":"2019-07-18"},{"$f":"IF(DAY(LugDom1)=1,IF(AND(YEAR(LugDom1+12)=AnnoCalendario,MONTH(LugDom1+12)=7),LugDom1+12,\"\"),IF(AND(YEAR(LugDom1+19)=AnnoCalendario,MONTH(LugDom1+19)=7),LugDom1+19,\"\"))","v":"2019-07-19"},{"$f":"IF(DAY(LugDom1)=1,IF(AND(YEAR(LugDom1+13)=AnnoCalendario,MONTH(LugDom1+13)=7),LugDom1+13,\"\"),IF(AND(YEAR(LugDom1+20)=AnnoCalendario,MONTH(LugDom1+20)=7),LugDom1+20,\"\"))","v":"2019-07-20"},{"$f":"IF(DAY(LugDom1)=1,IF(AND(YEAR(LugDom1+14)=AnnoCalendario,MONTH(LugDom1+14)=7),LugDom1+14,\"\"),IF(AND(YEAR(LugDom1+21)=AnnoCalendario,MONTH(LugDom1+21)=7),LugDom1+21,\"\"))","v":"2019-07-21"},null,{"$f":"IF(DAY(AgoDom1)=1,IF(AND(YEAR(AgoDom1+8)=AnnoCalendario,MONTH(AgoDom1+8)=8),AgoDom1+8,\"\"),IF(AND(YEAR(AgoDom1+15)=AnnoCalendario,MONTH(AgoDom1+15)=8),AgoDom1+15,\"\"))","v":"2019-08-12"},{"$f":"IF(DAY(AgoDom1)=1,IF(AND(YEAR(AgoDom1+9)=AnnoCalendario,MONTH(AgoDom1+9)=8),AgoDom1+9,\"\"),IF(AND(YEAR(AgoDom1+16)=AnnoCalendario,MONTH(AgoDom1+16)=8),AgoDom1+16,\"\"))","v":"2019-08-13"},{"$f":"IF(DAY(AgoDom1)=1,IF(AND(YEAR(AgoDom1+10)=AnnoCalendario,MONTH(AgoDom1+10)=8),AgoDom1+10,\"\"),IF(AND(YEAR(AgoDom1+17)=AnnoCalendario,MONTH(AgoDom1+17)=8),AgoDom1+17,\"\"))","v":"2019-08-14"},{"$f":"IF(DAY(AgoDom1)=1,IF(AND(YEAR(AgoDom1+11)=AnnoCalendario,MONTH(AgoDom1+11)=8),AgoDom1+11,\"\"),IF(AND(YEAR(AgoDom1+18)=AnnoCalendario,MONTH(AgoDom1+18)=8),AgoDom1+18,\"\"))","v":"2019-08-15"},{"$f":"IF(DAY(AgoDom1)=1,IF(AND(YEAR(AgoDom1+12)=AnnoCalendario,MONTH(AgoDom1+12)=8),AgoDom1+12,\"\"),IF(AND(YEAR(AgoDom1+19)=AnnoCalendario,MONTH(AgoDom1+19)=8),AgoDom1+19,\"\"))","v":"2019-08-16"},{"$f":"IF(DAY(AgoDom1)=1,IF(AND(YEAR(AgoDom1+13)=AnnoCalendario,MONTH(AgoDom1+13)=8),AgoDom1+13,\"\"),IF(AND(YEAR(AgoDom1+20)=AnnoCalendario,MONTH(AgoDom1+20)=8),AgoDom1+20,\"\"))","v":"2019-08-17"},{"$f":"IF(DAY(AgoDom1)=1,IF(AND(YEAR(AgoDom1+14)=AnnoCalendario,MONTH(AgoDom1+14)=8),AgoDom1+14,\"\"),IF(AND(YEAR(AgoDom1+21)=AnnoCalendario,MONTH(AgoDom1+21)=8),AgoDom1+21,\"\"))","v":"2019-08-18"}]
[null,null,{"$f":"IF(DAY(LugDom1)=1,IF(AND(YEAR(LugDom1+15)=AnnoCalendario,MONTH(LugDom1+15)=7),LugDom1+15,\"\"),IF(AND(YEAR(LugDom1+22)=AnnoCalendario,MONTH(LugDom1+22)=7),LugDom1+22,\"\"))","v":"2019-07-22"},{"$f":"IF(DAY(LugDom1)=1,IF(AND(YEAR(LugDom1+16)=AnnoCalendario,MONTH(LugDom1+16)=7),LugDom1+16,\"\"),IF(AND(YEAR(LugDom1+23)=AnnoCalendario,MONTH(LugDom1+23)=7),LugDom1+23,\"\"))","v":"2019-07-23"},{"$f":"IF(DAY(LugDom1)=1,IF(AND(YEAR(LugDom1+17)=AnnoCalendario,MONTH(LugDom1+17)=7),LugDom1+17,\"\"),IF(AND(YEAR(LugDom1+24)=AnnoCalendario,MONTH(LugDom1+24)=7),LugDom1+24,\"\"))","v":"2019-07-24"},{"$f":"IF(DAY(LugDom1)=1,IF(AND(YEAR(LugDom1+18)=AnnoCalendario,MONTH(LugDom1+18)=7),LugDom1+18,\"\"),IF(AND(YEAR(LugDom1+25)=AnnoCalendario,MONTH(LugDom1+25)=7),LugDom1+25,\"\"))","v":"2019-07-25"},{"$f":"IF(DAY(LugDom1)=1,IF(AND(YEAR(LugDom1+19)=AnnoCalendario,MONTH(LugDom1+19)=7),LugDom1+19,\"\"),IF(AND(YEAR(LugDom1+26)=AnnoCalendario,MONTH(LugDom1+26)=7),LugDom1+26,\"\"))","v":"2019-07-26"},{"$f":"IF(DAY(LugDom1)=1,IF(AND(YEAR(LugDom1+20)=AnnoCalendario,MONTH(LugDom1+20)=7),LugDom1+20,\"\"),IF(AND(YEAR(LugDom1+27)=AnnoCalendario,MONTH(LugDom1+27)=7),LugDom1+27,\"\"))","v":"2019-07-27"},{"$f":"IF(DAY(LugDom1)=1,IF(AND(YEAR(LugDom1+21)=AnnoCalendario,MONTH(LugDom1+21)=7),LugDom1+21,\"\"),IF(AND(YEAR(LugDom1+28)=AnnoCalendario,MONTH(LugDom1+28)=7),LugDom1+28,\"\"))","v":"2019-07-28"},null,{"$f":"IF(DAY(AgoDom1)=1,IF(AND(YEAR(AgoDom1+15)=AnnoCalendario,MONTH(AgoDom1+15)=8),AgoDom1+15,\"\"),IF(AND(YEAR(AgoDom1+22)=AnnoCalendario,MONTH(AgoDom1+22)=8),AgoDom1+22,\"\"))","v":"2019-08-19"},{"$f":"IF(DAY(AgoDom1)=1,IF(AND(YEAR(AgoDom1+16)=AnnoCalendario,MONTH(AgoDom1+16)=8),AgoDom1+16,\"\"),IF(AND(YEAR(AgoDom1+23)=AnnoCalendario,MONTH(AgoDom1+23)=8),AgoDom1+23,\"\"))","v":"2019-08-20"},{"$f":"IF(DAY(AgoDom1)=1,IF(AND(YEAR(AgoDom1+17)=AnnoCalendario,MONTH(AgoDom1+17)=8),AgoDom1+17,\"\"),IF(AND(YEAR(AgoDom1+24)=AnnoCalendario,MONTH(AgoDom1+24)=8),AgoDom1+24,\"\"))","v":"2019-08-21"},{"$f":"IF(DAY(AgoDom1)=1,IF(AND(YEAR(AgoDom1+18)=AnnoCalendario,MONTH(AgoDom1+18)=8),AgoDom1+18,\"\"),IF(AND(YEAR(AgoDom1+25)=AnnoCalendario,MONTH(AgoDom1+25)=8),AgoDom1+25,\"\"))","v":"2019-08-22"},{"$f":"IF(DAY(AgoDom1)=1,IF(AND(YEAR(AgoDom1+19)=AnnoCalendario,MONTH(AgoDom1+19)=8),AgoDom1+19,\"\"),IF(AND(YEAR(AgoDom1+26)=AnnoCalendario,MONTH(AgoDom1+26)=8),AgoDom1+26,\"\"))","v":"2019-08-23"},{"$f":"IF(DAY(AgoDom1)=1,IF(AND(YEAR(AgoDom1+20)=AnnoCalendario,MONTH(AgoDom1+20)=8),AgoDom1+20,\"\"),IF(AND(YEAR(AgoDom1+27)=AnnoCalendario,MONTH(AgoDom1+27)=8),AgoDom1+27,\"\"))","v":"2019-08-24"},{"$f":"IF(DAY(AgoDom1)=1,IF(AND(YEAR(AgoDom1+21)=AnnoCalendario,MONTH(AgoDom1+21)=8),AgoDom1+21,\"\"),IF(AND(YEAR(AgoDom1+28)=AnnoCalendario,MONTH(AgoDom1+28)=8),AgoDom1+28,\"\"))","v":"2019-08-25"}]
[null,null,{"$f":"IF(DAY(LugDom1)=1,IF(AND(YEAR(LugDom1+22)=AnnoCalendario,MONTH(LugDom1+22)=7),LugDom1+22,\"\"),IF(AND(YEAR(LugDom1+29)=AnnoCalendario,MONTH(LugDom1+29)=7),LugDom1+29,\"\"))","v":"2019-07-29"},{"$f":"IF(DAY(LugDom1)=1,IF(AND(YEAR(LugDom1+23)=AnnoCalendario,MONTH(LugDom1+23)=7),LugDom1+23,\"\"),IF(AND(YEAR(LugDom1+30)=AnnoCalendario,MONTH(LugDom1+30)=7),LugDom1+30,\"\"))","v":"2019-07-30"},{"$f":"IF(DAY(LugDom1)=1,IF(AND(YEAR(LugDom1+24)=AnnoCalendario,MONTH(LugDom1+24)=7),LugDom1+24,\"\"),IF(AND(YEAR(LugDom1+31)=AnnoCalendario,MONTH(LugDom1+31)=7),LugDom1+31,\"\"))","v":"2019-07-31"},{"$f":"IF(DAY(LugDom1)=1,IF(AND(YEAR(LugDom1+25)=AnnoCalendario,MONTH(LugDom1+25)=7),LugDom1+25,\"\"),IF(AND(YEAR(LugDom1+32)=AnnoCalendario,MONTH(LugDom1+32)=7),LugDom1+32,\"\"))","v":""},{"$f":"IF(DAY(LugDom1)=1,IF(AND(YEAR(LugDom1+26)=AnnoCalendario,MONTH(LugDom1+26)=7),LugDom1+26,\"\"),IF(AND(YEAR(LugDom1+33)=AnnoCalendario,MONTH(LugDom1+33)=7),LugDom1+33,\"\"))","v":""},{"$f":"IF(DAY(LugDom1)=1,IF(AND(YEAR(LugDom1+27)=AnnoCalendario,MONTH(LugDom1+27)=7),LugDom1+27,\"\"),IF(AND(YEAR(LugDom1+34)=AnnoCalendario,MONTH(LugDom1+34)=7),LugDom1+34,\"\"))","v":""},{"$f":"IF(DAY(LugDom1)=1,IF(AND(YEAR(LugDom1+28)=AnnoCalendario,MONTH(LugDom1+28)=7),LugDom1+28,\"\"),IF(AND(YEAR(LugDom1+35)=AnnoCalendario,MONTH(LugDom1+35)=7),LugDom1+35,\"\"))","v":""},null,{"$f":"IF(DAY(AgoDom1)=1,IF(AND(YEAR(AgoDom1+22)=AnnoCalendario,MONTH(AgoDom1+22)=8),AgoDom1+22,\"\"),IF(AND(YEAR(AgoDom1+29)=AnnoCalendario,MONTH(AgoDom1+29)=8),AgoDom1+29,\"\"))","v":"2019-08-26"},{"$f":"IF(DAY(AgoDom1)=1,IF(AND(YEAR(AgoDom1+23)=AnnoCalendario,MONTH(AgoDom1+23)=8),AgoDom1+23,\"\"),IF(AND(YEAR(AgoDom1+30)=AnnoCalendario,MONTH(AgoDom1+30)=8),AgoDom1+30,\"\"))","v":"2019-08-27"},{"$f":"IF(DAY(AgoDom1)=1,IF(AND(YEAR(AgoDom1+24)=AnnoCalendario,MONTH(AgoDom1+24)=8),AgoDom1+24,\"\"),IF(AND(YEAR(AgoDom1+31)=AnnoCalendario,MONTH(AgoDom1+31)=8),AgoDom1+31,\"\"))","v":"2019-08-28"},{"$f":"IF(DAY(AgoDom1)=1,IF(AND(YEAR(AgoDom1+25)=AnnoCalendario,MONTH(AgoDom1+25)=8),AgoDom1+25,\"\"),IF(AND(YEAR(AgoDom1+32)=AnnoCalendario,MONTH(AgoDom1+32)=8),AgoDom1+32,\"\"))","v":"2019-08-29"},{"$f":"IF(DAY(AgoDom1)=1,IF(AND(YEAR(AgoDom1+26)=AnnoCalendario,MONTH(AgoDom1+26)=8),AgoDom1+26,\"\"),IF(AND(YEAR(AgoDom1+33)=AnnoCalendario,MONTH(AgoDom1+33)=8),AgoDom1+33,\"\"))","v":"2019-08-30"},{"$f":"IF(DAY(AgoDom1)=1,IF(AND(YEAR(AgoDom1+27)=AnnoCalendario,MONTH(AgoDom1+27)=8),AgoDom1+27,\"\"),IF(AND(YEAR(AgoDom1+34)=AnnoCalendario,MONTH(AgoDom1+34)=8),AgoDom1+34,\"\"))","v":"2019-08-31"},{"$f":"IF(DAY(AgoDom1)=1,IF(AND(YEAR(AgoDom1+28)=AnnoCalendario,MONTH(AgoDom1+28)=8),AgoDom1+28,\"\"),IF(AND(YEAR(AgoDom1+35)=AnnoCalendario,MONTH(AgoDom1+35)=8),AgoDom1+35,\"\"))","v":""}]
[null,null,{"$f":"IF(DAY(LugDom1)=1,IF(AND(YEAR(LugDom1+29)=AnnoCalendario,MONTH(LugDom1+29)=7),LugDom1+29,\"\"),IF(AND(YEAR(LugDom1+36)=AnnoCalendario,MONTH(LugDom1+36)=7),LugDom1+36,\"\"))","v":""},{"$f":"IF(DAY(LugDom1)=1,IF(AND(YEAR(LugDom1+30)=AnnoCalendario,MONTH(LugDom1+30)=7),LugDom1+30,\"\"),IF(AND(YEAR(LugDom1+37)=AnnoCalendario,MONTH(LugDom1+37)=7),LugDom1+37,\"\"))","v":""},{"$f":"IF(DAY(LugDom1)=1,IF(AND(YEAR(LugDom1+31)=AnnoCalendario,MONTH(LugDom1+31)=7),LugDom1+31,\"\"),IF(AND(YEAR(LugDom1+38)=AnnoCalendario,MONTH(LugDom1+38)=7),LugDom1+38,\"\"))","v":""},{"$f":"IF(DAY(LugDom1)=1,IF(AND(YEAR(LugDom1+32)=AnnoCalendario,MONTH(LugDom1+32)=7),LugDom1+32,\"\"),IF(AND(YEAR(LugDom1+39)=AnnoCalendario,MONTH(LugDom1+39)=7),LugDom1+39,\"\"))","v":""},{"$f":"IF(DAY(LugDom1)=1,IF(AND(YEAR(LugDom1+33)=AnnoCalendario,MONTH(LugDom1+33)=7),LugDom1+33,\"\"),IF(AND(YEAR(LugDom1+40)=AnnoCalendario,MONTH(LugDom1+40)=7),LugDom1+40,\"\"))","v":""},{"$f":"IF(DAY(LugDom1)=1,IF(AND(YEAR(LugDom1+34)=AnnoCalendario,MONTH(LugDom1+34)=7),LugDom1+34,\"\"),IF(AND(YEAR(LugDom1+41)=AnnoCalendario,MONTH(LugDom1+41)=7),LugDom1+41,\"\"))","v":""},{"$f":"IF(DAY(LugDom1)=1,IF(AND(YEAR(LugDom1+35)=AnnoCalendario,MONTH(LugDom1+35)=7),LugDom1+35,\"\"),IF(AND(YEAR(LugDom1+42)=AnnoCalendario,MONTH(LugDom1+42)=7),LugDom1+42,\"\"))","v":""},null,{"$f":"IF(DAY(AgoDom1)=1,IF(AND(YEAR(AgoDom1+29)=AnnoCalendario,MONTH(AgoDom1+29)=8),AgoDom1+29,\"\"),IF(AND(YEAR(AgoDom1+36)=AnnoCalendario,MONTH(AgoDom1+36)=8),AgoDom1+36,\"\"))","v":""},{"$f":"IF(DAY(AgoDom1)=1,IF(AND(YEAR(AgoDom1+30)=AnnoCalendario,MONTH(AgoDom1+30)=8),AgoDom1+30,\"\"),IF(AND(YEAR(AgoDom1+37)=AnnoCalendario,MONTH(AgoDom1+37)=8),AgoDom1+37,\"\"))","v":""},{"$f":"IF(DAY(AgoDom1)=1,IF(AND(YEAR(AgoDom1+31)=AnnoCalendario,MONTH(AgoDom1+31)=8),AgoDom1+31,\"\"),IF(AND(YEAR(AgoDom1+38)=AnnoCalendario,MONTH(AgoDom1+38)=8),AgoDom1+38,\"\"))","v":""},{"$f":"IF(DAY(AgoDom1)=1,IF(AND(YEAR(AgoDom1+32)=AnnoCalendario,MONTH(AgoDom1+32)=8),AgoDom1+32,\"\"),IF(AND(YEAR(AgoDom1+39)=AnnoCalendario,MONTH(AgoDom1+39)=8),AgoDom1+39,\"\"))","v":""},{"$f":"IF(DAY(AgoDom1)=1,IF(AND(YEAR(AgoDom1+33)=AnnoCalendario,MONTH(AgoDom1+33)=8),AgoDom1+33,\"\"),IF(AND(YEAR(AgoDom1+40)=AnnoCalendario,MONTH(AgoDom1+40)=8),AgoDom1+40,\"\"))","v":""},{"$f":"IF(DAY(AgoDom1)=1,IF(AND(YEAR(AgoDom1+34)=AnnoCalendario,MONTH(AgoDom1+34)=8),AgoDom1+34,\"\"),IF(AND(YEAR(AgoDom1+41)=AnnoCalendario,MONTH(AgoDom1+41)=8),AgoDom1+41,\"\"))","v":""},{"$f":"IF(DAY(AgoDom1)=1,IF(AND(YEAR(AgoDom1+35)=AnnoCalendario,MONTH(AgoDom1+35)=8),AgoDom1+35,\"\"),IF(AND(YEAR(AgoDom1+42)=AnnoCalendario,MONTH(AgoDom1+42)=8),AgoDom1+42,\"\"))","v":""}]
[]
[null,null,"SETTEMBRE",{"$nulls":7},"OTTOBRE"]
[null,null,"L","M","M","G","V","S","D",null,"L","M","M","G","V","S","D"]
[null,null,{"$f":"IF(DAY(SetDom1)=1,\"\",IF(AND(YEAR(SetDom1+1)=AnnoCalendario,MONTH(SetDom1+1)=9),SetDom1+1,\"\"))","v":""},{"$f":"IF(DAY(SetDom1)=1,\"\",IF(AND(YEAR(SetDom1+2)=AnnoCalendario,MONTH(SetDom1+2)=9),SetDom1+2,\"\"))","v":""},{"$f":"IF(DAY(SetDom1)=1,\"\",IF(AND(YEAR(SetDom1+3)=AnnoCalendario,MONTH(SetDom1+3)=9),SetDom1+3,\"\"))","v":""},{"$f":"IF(DAY(SetDom1)=1,\"\",IF(AND(YEAR(SetDom1+4)=AnnoCalendario,MONTH(SetDom1+4)=9),SetDom1+4,\"\"))","v":""},{"$f":"IF(DAY(SetDom1)=1,\"\",IF(AND(YEAR(SetDom1+5)=AnnoCalendario,MONTH(SetDom1+5)=9),SetDom1+5,\"\"))","v":""},{"$f":"IF(DAY(SetDom1)=1,\"\",IF(AND(YEAR(SetDom1+6)=AnnoCalendario,MONTH(SetDom1+6)=9),SetDom1+6,\"\"))","v":""},{"$f":"IF(DAY(SetDom1)=1,IF(AND(YEAR(SetDom1)=AnnoCalendario,MONTH(SetDom1)=9),SetDom1,\"\"),IF(AND(YEAR(SetDom1+7)=AnnoCalendario,MONTH(SetDom1+7)=9),SetDom1+7,\"\"))","v":"2019-09-01"},null,{"$f":"IF(DAY(OttDom1)=1,\"\",IF(AND(YEAR(OttDom1+1)=AnnoCalendario,MONTH(OttDom1+1)=10),OttDom1+1,\"\"))","v":""},{"$f":"IF(DAY(OttDom1)=1,\"\",IF(AND(YEAR(OttDom1+2)=AnnoCalendario,MONTH(OttDom1+2)=10),OttDom1+2,\"\"))","v":"2019-10-01"},{"$f":"IF(DAY(OttDom1)=1,\"\",IF(AND(YEAR(OttDom1+3)=AnnoCalendario,MONTH(OttDom1+3)=10),OttDom1+3,\"\"))","v":"2019-10-02"},{"$f":"IF(DAY(OttDom1)=1,\"\",IF(AND(YEAR(OttDom1+4)=AnnoCalendario,MONTH(OttDom1+4)=10),OttDom1+4,\"\"))","v":"2019-10-03"},{"$f":"IF(DAY(OttDom1)=1,\"\",IF(AND(YEAR(OttDom1+5)=AnnoCalendario,MONTH(OttDom1+5)=10),OttDom1+5,\"\"))","v":"2019-10-04"},{"$f":"IF(DAY(OttDom1)=1,\"\",IF(AND(YEAR(OttDom1+6)=AnnoCalendario,MONTH(OttDom1+6)=10),OttDom1+6,\"\"))","v":"2019-10-05"},{"$f":"IF(DAY(OttDom1)=1,IF(AND(YEAR(OttDom1)=AnnoCalendario,MONTH(OttDom1)=10),OttDom1,\"\"),IF(AND(YEAR(OttDom1+7)=AnnoCalendario,MONTH(OttDom1+7)=10),OttDom1+7,\"\"))","v":"2019-10-06"}]
[null,null,{"$f":"IF(DAY(SetDom1)=1,IF(AND(YEAR(SetDom1+1)=AnnoCalendario,MONTH(SetDom1+1)=9),SetDom1+1,\"\"),IF(AND(YEAR(SetDom1+8)=AnnoCalendario,MONTH(SetDom1+8)=9),SetDom1+8,\"\"))","v":"2019-09-02"},{"$f":"IF(DAY(SetDom1)=1,IF(AND(YEAR(SetDom1+2)=AnnoCalendario,MONTH(SetDom1+2)=9),SetDom1+2,\"\"),IF(AND(YEAR(SetDom1+9)=AnnoCalendario,MONTH(SetDom1+9)=9),SetDom1+9,\"\"))","v":"2019-09-03"},{"$f":"IF(DAY(SetDom1)=1,IF(AND(YEAR(SetDom1+3)=AnnoCalendario,MONTH(SetDom1+3)=9),SetDom1+3,\"\"),IF(AND(YEAR(SetDom1+10)=AnnoCalendario,MONTH(SetDom1+10)=9),SetDom1+10,\"\"))","v":"2019-09-04"},{"$f":"IF(DAY(SetDom1)=1,IF(AND(YEAR(SetDom1+4)=AnnoCalendario,MONTH(SetDom1+4)=9),SetDom1+4,\"\"),IF(AND(YEAR(SetDom1+11)=AnnoCalendario,MONTH(SetDom1+11)=9),SetDom1+11,\"\"))","v":"2019-09-05"},{"$f":"IF(DAY(SetDom1)=1,IF(AND(YEAR(SetDom1+5)=AnnoCalendario,MONTH(SetDom1+5)=9),SetDom1+5,\"\"),IF(AND(YEAR(SetDom1+12)=AnnoCalendario,MONTH(SetDom1+12)=9),SetDom1+12,\"\"))","v":"2019-09-06"},{"$f":"IF(DAY(SetDom1)=1,IF(AND(YEAR(SetDom1+6)=AnnoCalendario,MONTH(SetDom1+6)=9),SetDom1+6,\"\"),IF(AND(YEAR(SetDom1+13)=AnnoCalendario,MONTH(SetDom1+13)=9),SetDom1+13,\"\"))","v":"2019-09-07"},{"$f":"IF(DAY(SetDom1)=1,IF(AND(YEAR(SetDom1+7)=AnnoCalendario,MONTH(SetDom1+7)=9),SetDom1+7,\"\"),IF(AND(YEAR(SetDom1+14)=AnnoCalendario,MONTH(SetDom1+14)=9),SetDom1+14,\"\"))","v":"2019-09-08"},null,{"$f":"IF(DAY(OttDom1)=1,IF(AND(YEAR(OttDom1+1)=AnnoCalendario,MONTH(OttDom1+1)=10),OttDom1+1,\"\"),IF(AND(YEAR(OttDom1+8)=AnnoCalendario,MONTH(OttDom1+8)=10),OttDom1+8,\"\"))","v":"2019-10-07"},{"$f":"IF(DAY(OttDom1)=1,IF(AND(YEAR(OttDom1+2)=AnnoCalendario,MONTH(OttDom1+2)=10),OttDom1+2,\"\"),IF(AND(YEAR(OttDom1+9)=AnnoCalendario,MONTH(OttDom1+9)=10),OttDom1+9,\"\"))","v":"2019-10-08"},{"$f":"IF(DAY(OttDom1)=1,IF(AND(YEAR(OttDom1+3)=AnnoCalendario,MONTH(OttDom1+3)=10),OttDom1+3,\"\"),IF(AND(YEAR(OttDom1+10)=AnnoCalendario,MONTH(OttDom1+10)=10),OttDom1+10,\"\"))","v":"2019-10-09"},{"$f":"IF(DAY(OttDom1)=1,IF(AND(YEAR(OttDom1+4)=AnnoCalendario,MONTH(OttDom1+4)=10),OttDom1+4,\"\"),IF(AND(YEAR(OttDom1+11)=AnnoCalendario,MONTH(OttDom1+11)=10),OttDom1+11,\"\"))","v":"2019-10-10"},{"$f":"IF(DAY(OttDom1)=1,IF(AND(YEAR(OttDom1+5)=AnnoCalendario,MONTH(OttDom1+5)=10),OttDom1+5,\"\"),IF(AND(YEAR(OttDom1+12)=AnnoCalendario,MONTH(OttDom1+12)=10),OttDom1+12,\"\"))","v":"2019-10-11"},{"$f":"IF(DAY(OttDom1)=1,IF(AND(YEAR(OttDom1+6)=AnnoCalendario,MONTH(OttDom1+6)=10),OttDom1+6,\"\"),IF(AND(YEAR(OttDom1+13)=AnnoCalendario,MONTH(OttDom1+13)=10),OttDom1+13,\"\"))","v":"2019-10-12"},{"$f":"IF(DAY(OttDom1)=1,IF(AND(YEAR(OttDom1+7)=AnnoCalendario,MONTH(OttDom1+7)=10),OttDom1+7,\"\"),IF(AND(YEAR(OttDom1+14)=AnnoCalendario,MONTH(OttDom1+14)=10),OttDom1+14,\"\"))","v":"2019-10-13"}]
[null,null,{"$f":"IF(DAY(SetDom1)=1,IF(AND(YEAR(SetDom1+8)=AnnoCalendario,MONTH(SetDom1+8)=9),SetDom1+8,\"\"),IF(AND(YEAR(SetDom1+15)=AnnoCalendario,MONTH(SetDom1+15)=9),SetDom1+15,\"\"))","v":"2019-09-09"},{"$f":"IF(DAY(SetDom1)=1,IF(AND(YEAR(SetDom1+9)=AnnoCalendario,MONTH(SetDom1+9)=9),SetDom1+9,\"\"),IF(AND(YEAR(SetDom1+16)=AnnoCalendario,MONTH(SetDom1+16)=9),SetDom1+16,\"\"))","v":"2019-09-10"},{"$f":"IF(DAY(SetDom1)=1,IF(AND(YEAR(SetDom1+10)=AnnoCalendario,MONTH(SetDom1+10)=9),SetDom1+10,\"\"),IF(AND(YEAR(SetDom1+17)=AnnoCalendario,MONTH(SetDom1+17)=9),SetDom1+17,\"\"))","v":"2019-09-11"},{"$f":"IF(DAY(SetDom1)=1,IF(AND(YEAR(SetDom1+11)=AnnoCalendario,MONTH(SetDom1+11)=9),SetDom1+11,\"\"),IF(AND(YEAR(SetDom1+18)=AnnoCalendario,MONTH(SetDom1+18)=9),SetDom1+18,\"\"))","v":"2019-09-12"},{"$f":"IF(DAY(SetDom1)=1,IF(AND(YEAR(SetDom1+12)=AnnoCalendario,MONTH(SetDom1+12)=9),SetDom1+12,\"\"),IF(AND(YEAR(SetDom1+19)=AnnoCalendario,MONTH(SetDom1+19)=9),SetDom1+19,\"\"))","v":"2019-09-13"},{"$f":"IF(DAY(SetDom1)=1,IF(AND(YEAR(SetDom1+13)=AnnoCalendario,MONTH(SetDom1+13)=9),SetDom1+13,\"\"),IF(AND(YEAR(SetDom1+20)=AnnoCalendario,MONTH(SetDom1+20)=9),SetDom1+20,\"\"))","v":"2019-09-14"},{"$f":"IF(DAY(SetDom1)=1,IF(AND(YEAR(SetDom1+14)=AnnoCalendario,MONTH(SetDom1+14)=9),SetDom1+14,\"\"),IF(AND(YEAR(SetDom1+21)=AnnoCalendario,MONTH(SetDom1+21)=9),SetDom1+21,\"\"))","v":"2019-09-15"},null,{"$f":"IF(DAY(OttDom1)=1,IF(AND(YEAR(OttDom1+8)=AnnoCalendario,MONTH(OttDom1+8)=10),OttDom1+8,\"\"),IF(AND(YEAR(OttDom1+15)=AnnoCalendario,MONTH(OttDom1+15)=10),OttDom1+15,\"\"))","v":"2019-10-14"},{"$f":"IF(DAY(OttDom1)=1,IF(AND(YEAR(OttDom1+9)=AnnoCalendario,MONTH(OttDom1+9)=10),OttDom1+9,\"\"),IF(AND(YEAR(OttDom1+16)=AnnoCalendario,MONTH(OttDom1+16)=10),OttDom1+16,\"\"))","v":"2019-10-15"},{"$f":"IF(DAY(OttDom1)=1,IF(AND(YEAR(OttDom1+10)=AnnoCalendario,MONTH(OttDom1+10)=10),OttDom1+10,\"\"),IF(AND(YEAR(OttDom1+17)=AnnoCalendario,MONTH(OttDom1+17)=10),OttDom1+17,\"\"))","v":"2019-10-16"},{"$f":"IF(DAY(OttDom1)=1,IF(AND(YEAR(OttDom1+11)=AnnoCalendario,MONTH(OttDom1+11)=10),OttDom1+11,\"\"),IF(AND(YEAR(OttDom1+18)=AnnoCalendario,MONTH(OttDom1+18)=10),OttDom1+18,\"\"))","v":"2019-10-17"},{"$f":"IF(DAY(OttDom1)=1,IF(AND(YEAR(OttDom1+12)=AnnoCalendario,MONTH(OttDom1+12)=10),OttDom1+12,\"\"),IF(AND(YEAR(OttDom1+19)=AnnoCalendario,MONTH(OttDom1+19)=10),OttDom1+19,\"\"))","v":"2019-10-18"},{"$f":"IF(DAY(OttDom1)=1,IF(AND(YEAR(OttDom1+13)=AnnoCalendario,MONTH(OttDom1+13)=10),OttDom1+13,\"\"),IF(AND(YEAR(OttDom1+20)=AnnoCalendario,MONTH(OttDom1+20)=10),OttDom1+20,\"\"))","v":"2019-10-19"},{"$f":"IF(DAY(OttDom1)=1,IF(AND(YEAR(OttDom1+14)=AnnoCalendario,MONTH(OttDom1+14)=10),OttDom1+14,\"\"),IF(AND(YEAR(OttDom1+21)=AnnoCalendario,MONTH(OttDom1+21)=10),OttDom1+21,\"\"))","v":"2019-10-20"}]
[null,null,{"$f":"IF(DAY(SetDom1)=1,IF(AND(YEAR(SetDom1+15)=AnnoCalendario,MONTH(SetDom1+15)=9),SetDom1+15,\"\"),IF(AND(YEAR(SetDom1+22)=AnnoCalendario,MONTH(SetDom1+22)=9),SetDom1+22,\"\"))","v":"2019-09-16"},{"$f":"IF(DAY(SetDom1)=1,IF(AND(YEAR(SetDom1+16)=AnnoCalendario,MONTH(SetDom1+16)=9),SetDom1+16,\"\"),IF(AND(YEAR(SetDom1+23)=AnnoCalendario,MONTH(SetDom1+23)=9),SetDom1+23,\"\"))","v":"2019-09-17"},{"$f":"IF(DAY(SetDom1)=1,IF(AND(YEAR(SetDom1+17)=AnnoCalendario,MONTH(SetDom1+17)=9),SetDom1+17,\"\"),IF(AND(YEAR(SetDom1+24)=AnnoCalendario,MONTH(SetDom1+24)=9),SetDom1+24,\"\"))","v":"2019-09-18"},{"$f":"IF(DAY(SetDom1)=1,IF(AND(YEAR(SetDom1+18)=AnnoCalendario,MONTH(SetDom1+18)=9),SetDom1+18,\"\"),IF(AND(YEAR(SetDom1+25)=AnnoCalendario,MONTH(SetDom1+25)=9),SetDom1+25,\"\"))","v":"2019-09-19"},{"$f":"IF(DAY(SetDom1)=1,IF(AND(YEAR(SetDom1+19)=AnnoCalendario,MONTH(SetDom1+19)=9),SetDom1+19,\"\"),IF(AND(YEAR(SetDom1+26)=AnnoCalendario,MONTH(SetDom1+26)=9),SetDom1+26,\"\"))","v":"2019-09-20"},{"$f":"IF(DAY(SetDom1)=1,IF(AND(YEAR(SetDom1+20)=AnnoCalendario,MONTH(SetDom1+20)=9),SetDom1+20,\"\"),IF(AND(YEAR(SetDom1+27)=AnnoCalendario,MONTH(SetDom1+27)=9),SetDom1+27,\"\"))","v":"2019-09-21"},{"$f":"IF(DAY(SetDom1)=1,IF(AND(YEAR(SetDom1+21)=AnnoCalendario,MONTH(SetDom1+21)=9),SetDom1+21,\"\"),IF(AND(YEAR(SetDom1+28)=AnnoCalendario,MONTH(SetDom1+28)=9),SetDom1+28,\"\"))","v":"2019-09-22"},null,{"$f":"IF(DAY(OttDom1)=1,IF(AND(YEAR(OttDom1+15)=AnnoCalendario,MONTH(OttDom1+15)=10),OttDom1+15,\"\"),IF(AND(YEAR(OttDom1+22)=AnnoCalendario,MONTH(OttDom1+22)=10),OttDom1+22,\"\"))","v":"2019-10-21"},{"$f":"IF(DAY(OttDom1)=1,IF(AND(YEAR(OttDom1+16)=AnnoCalendario,MONTH(OttDom1+16)=10),OttDom1+16,\"\"),IF(AND(YEAR(OttDom1+23)=AnnoCalendario,MONTH(OttDom1+23)=10),OttDom1+23,\"\"))","v":"2019-10-22"},{"$f":"IF(DAY(OttDom1)=1,IF(AND(YEAR(OttDom1+17)=AnnoCalendario,MONTH(OttDom1+17)=10),OttDom1+17,\"\"),IF(AND(YEAR(OttDom1+24)=AnnoCalendario,MONTH(OttDom1+24)=10),OttDom1+24,\"\"))","v":"2019-10-23"},{"$f":"IF(DAY(OttDom1)=1,IF(AND(YEAR(OttDom1+18)=AnnoCalendario,MONTH(OttDom1+18)=10),OttDom1+18,\"\"),IF(AND(YEAR(OttDom1+25)=AnnoCalendario,MONTH(OttDom1+25)=10),OttDom1+25,\"\"))","v":"2019-10-24"},{"$f":"IF(DAY(OttDom1)=1,IF(AND(YEAR(OttDom1+19)=AnnoCalendario,MONTH(OttDom1+19)=10),OttDom1+19,\"\"),IF(AND(YEAR(OttDom1+26)=AnnoCalendario,MONTH(OttDom1+26)=10),OttDom1+26,\"\"))","v":"2019-10-25"},{"$f":"IF(DAY(OttDom1)=1,IF(AND(YEAR(OttDom1+20)=AnnoCalendario,MONTH(OttDom1+20)=10),OttDom1+20,\"\"),IF(AND(YEAR(OttDom1+27)=AnnoCalendario,MONTH(OttDom1+27)=10),OttDom1+27,\"\"))","v":"2019-10-26"},{"$f":"IF(DAY(OttDom1)=1,IF(AND(YEAR(OttDom1+21)=AnnoCalendario,MONTH(OttDom1+21)=10),OttDom1+21,\"\"),IF(AND(YEAR(OttDom1+28)=AnnoCalendario,MONTH(OttDom1+28)=10),OttDom1+28,\"\"))","v":"2019-10-27"},{"$nulls":3},"Viale Martedì 123"]
[null,null,{"$f":"IF(DAY(SetDom1)=1,IF(AND(YEAR(SetDom1+22)=AnnoCalendario,MONTH(SetDom1+22)=9),SetDom1+22,\"\"),IF(AND(YEAR(SetDom1+29)=AnnoCalendario,MONTH(SetDom1+29)=9),SetDom1+29,\"\"))","v":"2019-09-23"},{"$f":"IF(DAY(SetDom1)=1,IF(AND(YEAR(SetDom1+23)=AnnoCalendario,MONTH(SetDom1+23)=9),SetDom1+23,\"\"),IF(AND(YEAR(SetDom1+30)=AnnoCalendario,MONTH(SetDom1+30)=9),SetDom1+30,\"\"))","v":"2019-09-24"},{"$f":"IF(DAY(SetDom1)=1,IF(AND(YEAR(SetDom1+24)=AnnoCalendario,MONTH(SetDom1+24)=9),SetDom1+24,\"\"),IF(AND(YEAR(SetDom1+31)=AnnoCalendario,MONTH(SetDom1+31)=9),SetDom1+31,\"\"))","v":"2019-09-25"},{"$f":"IF(DAY(SetDom1)=1,IF(AND(YEAR(SetDom1+25)=AnnoCalendario,MONTH(SetDom1+25)=9),SetDom1+25,\"\"),IF(AND(YEAR(SetDom1+32)=AnnoCalendario,MONTH(SetDom1+32)=9),SetDom1+32,\"\"))","v":"2019-09-26"},{"$f":"IF(DAY(SetDom1)=1,IF(AND(YEAR(SetDom1+26)=AnnoCalendario,MONTH(SetDom1+26)=9),SetDom1+26,\"\"),IF(AND(YEAR(SetDom1+33)=AnnoCalendario,MONTH(SetDom1+33)=9),SetDom1+33,\"\"))","v":"2019-09-27"},{"$f":"IF(DAY(SetDom1)=1,IF(AND(YEAR(SetDom1+27)=AnnoCalendario,MONTH(SetDom1+27)=9),SetDom1+27,\"\"),IF(AND(YEAR(SetDom1+34)=AnnoCalendario,MONTH(SetDom1+34)=9),SetDom1+34,\"\"))","v":"2019-09-28"},{"$f":"IF(DAY(SetDom1)=1,IF(AND(YEAR(SetDom1+28)=AnnoCalendario,MONTH(SetDom1+28)=9),SetDom1+28,\"\"),IF(AND(YEAR(SetDom1+35)=AnnoCalendario,MONTH(SetDom1+35)=9),SetDom1+35,\"\"))","v":"2019-09-29"},null,{"$f":"IF(DAY(OttDom1)=1,IF(AND(YEAR(OttDom1+22)=AnnoCalendario,MONTH(OttDom1+22)=10),OttDom1+22,\"\"),IF(AND(YEAR(OttDom1+29)=AnnoCalendario,MONTH(OttDom1+29)=10),OttDom1+29,\"\"))","v":"2019-10-28"},{"$f":"IF(DAY(OttDom1)=1,IF(AND(YEAR(OttDom1+23)=AnnoCalendario,MONTH(OttDom1+23)=10),OttDom1+23,\"\"),IF(AND(YEAR(OttDom1+30)=AnnoCalendario,MONTH(OttDom1+30)=10),OttDom1+30,\"\"))","v":"2019-10-29"},{"$f":"IF(DAY(OttDom1)=1,IF(AND(YEAR(OttDom1+24)=AnnoCalendario,MONTH(OttDom1+24)=10),OttDom1+24,\"\"),IF(AND(YEAR(OttDom1+31)=AnnoCalendario,MONTH(OttDom1+31)=10),OttDom1+31,\"\"))","v":"2019-10-30"},{"$f":"IF(DAY(OttDom1)=1,IF(AND(YEAR(OttDom1+25)=AnnoCalendario,MONTH(OttDom1+25)=10),OttDom1+25,\"\"),IF(AND(YEAR(OttDom1+32)=AnnoCalendario,MONTH(OttDom1+32)=10),OttDom1+32,\"\"))","v":"2019-10-31"},{"$f":"IF(DAY(OttDom1)=1,IF(AND(YEAR(OttDom1+26)=AnnoCalendario,MONTH(OttDom1+26)=10),OttDom1+26,\"\"),IF(AND(YEAR(OttDom1+33)=AnnoCalendario,MONTH(OttDom1+33)=10),OttDom1+33,\"\"))","v":""},{"$f":"IF(DAY(OttDom1)=1,IF(AND(YEAR(OttDom1+27)=AnnoCalendario,MONTH(OttDom1+27)=10),OttDom1+27,\"\"),IF(AND(YEAR(OttDom1+34)=AnnoCalendario,MONTH(OttDom1+34)=10),OttDom1+34,\"\"))","v":""},{"$f":"IF(DAY(OttDom1)=1,IF(AND(YEAR(OttDom1+28)=AnnoCalendario,MONTH(OttDom1+28)=10),OttDom1+28,\"\"),IF(AND(YEAR(OttDom1+35)=AnnoCalendario,MONTH(OttDom1+35)=10),OttDom1+35,\"\"))","v":""},{"$nulls":3},"20100 Milano (MI)"]
[null,null,{"$f":"IF(DAY(SetDom1)=1,IF(AND(YEAR(SetDom1+29)=AnnoCalendario,MONTH(SetDom1+29)=9),SetDom1+29,\"\"),IF(AND(YEAR(SetDom1+36)=AnnoCalendario,MONTH(SetDom1+36)=9),SetDom1+36,\"\"))","v":"2019-09-30"},{"$f":"IF(DAY(SetDom1)=1,IF(AND(YEAR(SetDom1+30)=AnnoCalendario,MONTH(SetDom1+30)=9),SetDom1+30,\"\"),IF(AND(YEAR(SetDom1+37)=AnnoCalendario,MONTH(SetDom1+37)=9),SetDom1+37,\"\"))","v":""},{"$f":"IF(DAY(SetDom1)=1,IF(AND(YEAR(SetDom1+31)=AnnoCalendario,MONTH(SetDom1+31)=9),SetDom1+31,\"\"),IF(AND(YEAR(SetDom1+38)=AnnoCalendario,MONTH(SetDom1+38)=9),SetDom1+38,\"\"))","v":""},{"$f":"IF(DAY(SetDom1)=1,IF(AND(YEAR(SetDom1+32)=AnnoCalendario,MONTH(SetDom1+32)=9),SetDom1+32,\"\"),IF(AND(YEAR(SetDom1+39)=AnnoCalendario,MONTH(SetDom1+39)=9),SetDom1+39,\"\"))","v":""},{"$f":"IF(DAY(SetDom1)=1,IF(AND(YEAR(SetDom1+33)=AnnoCalendario,MONTH(SetDom1+33)=9),SetDom1+33,\"\"),IF(AND(YEAR(SetDom1+40)=AnnoCalendario,MONTH(SetDom1+40)=9),SetDom1+40,\"\"))","v":""},{"$f":"IF(DAY(SetDom1)=1,IF(AND(YEAR(SetDom1+34)=AnnoCalendario,MONTH(SetDom1+34)=9),SetDom1+34,\"\"),IF(AND(YEAR(SetDom1+41)=AnnoCalendario,MONTH(SetDom1+41)=9),SetDom1+41,\"\"))","v":""},{"$f":"IF(DAY(SetDom1)=1,IF(AND(YEAR(SetDom1+35)=AnnoCalendario,MONTH(SetDom1+35)=9),SetDom1+35,\"\"),IF(AND(YEAR(SetDom1+42)=AnnoCalendario,MONTH(SetDom1+42)=9),SetDom1+42,\"\"))","v":""},null,{"$f":"IF(DAY(OttDom1)=1,IF(AND(YEAR(OttDom1+29)=AnnoCalendario,MONTH(OttDom1+29)=10),OttDom1+29,\"\"),IF(AND(YEAR(OttDom1+36)=AnnoCalendario,MONTH(OttDom1+36)=10),OttDom1+36,\"\"))","v":""},{"$f":"IF(DAY(OttDom1)=1,IF(AND(YEAR(OttDom1+30)=AnnoCalendario,MONTH(OttDom1+30)=10),OttDom1+30,\"\"),IF(AND(YEAR(OttDom1+37)=AnnoCalendario,MONTH(OttDom1+37)=10),OttDom1+37,\"\"))","v":""},{"$f":"IF(DAY(OttDom1)=1,IF(AND(YEAR(OttDom1+31)=AnnoCalendario,MONTH(OttDom1+31)=10),OttDom1+31,\"\"),IF(AND(YEAR(OttDom1+38)=AnnoCalendario,MONTH(OttDom1+38)=10),OttDom1+38,\"\"))","v":""},{"$f":"IF(DAY(OttDom1)=1,IF(AND(YEAR(OttDom1+32)=AnnoCalendario,MONTH(OttDom1+32)=10),OttDom1+32,\"\"),IF(AND(YEAR(OttDom1+39)=AnnoCalendario,MONTH(OttDom1+39)=10),OttDom1+39,\"\"))","v":""},{"$f":"IF(DAY(OttDom1)=1,IF(AND(YEAR(OttDom1+33)=AnnoCalendario,MONTH(OttDom1+33)=10),OttDom1+33,\"\"),IF(AND(YEAR(OttDom1+40)=AnnoCalendario,MONTH(OttDom1+40)=10),OttDom1+40,\"\"))","v":""},{"$f":"IF(DAY(OttDom1)=1,IF(AND(YEAR(OttDom1+34)=AnnoCalendario,MONTH(OttDom1+34)=10),OttDom1+34,\"\"),IF(AND(YEAR(OttDom1+41)=AnnoCalendario,MONTH(OttDom1+41)=10),OttDom1+41,\"\"))","v":""},{"$f":"IF(DAY(OttDom1)=1,IF(AND(YEAR(OttDom1+35)=AnnoCalendario,MONTH(OttDom1+35)=10),OttDom1+35,\"\"),IF(AND(YEAR(OttDom1+42)=AnnoCalendario,MONTH(OttDom1+42)=10),OttDom1+42,\"\"))","v":""}]
[{"$nulls":20},"02.123 456 78"]
[null,null,"NOVEMBRE",{"$nulls":7},"DICEMBRE",{"$nulls":9},"info@contoso.com"]
[null,null,"L","M","M","G","V","S","D",null,"L","M","M","G","V","S","D",{"$nulls":3},"www.contoso.com"]
[null,null,{"$f":"IF(DAY(NovDom1)=1,\"\",IF(AND(YEAR(NovDom1+1)=AnnoCalendario,MONTH(NovDom1+1)=11),NovDom1+1,\"\"))","v":""},{"$f":"IF(DAY(NovDom1)=1,\"\",IF(AND(YEAR(NovDom1+2)=AnnoCalendario,MONTH(NovDom1+2)=11),NovDom1+2,\"\"))","v":""},{"$f":"IF(DAY(NovDom1)=1,\"\",IF(AND(YEAR(NovDom1+3)=AnnoCalendario,MONTH(NovDom1+3)=11),NovDom1+3,\"\"))","v":""},{"$f":"IF(DAY(NovDom1)=1,\"\",IF(AND(YEAR(NovDom1+4)=AnnoCalendario,MONTH(NovDom1+4)=11),NovDom1+4,\"\"))","v":""},{"$f":"IF(DAY(NovDom1)=1,\"\",IF(AND(YEAR(NovDom1+5)=AnnoCalendario,MONTH(NovDom1+5)=11),NovDom1+5,\"\"))","v":"2019-11-01"},{"$f":"IF(DAY(NovDom1)=1,\"\",IF(AND(YEAR(NovDom1+6)=AnnoCalendario,MONTH(NovDom1+6)=11),NovDom1+6,\"\"))","v":"2019-11-02"},{"$f":"IF(DAY(NovDom1)=1,IF(AND(YEAR(NovDom1)=AnnoCalendario,MONTH(NovDom1)=11),NovDom1,\"\"),IF(AND(YEAR(NovDom1+7)=AnnoCalendario,MONTH(NovDom1+7)=11),NovDom1+7,\"\"))","v":"2019-11-03"},null,{"$f":"IF(DAY(DicDom1)=1,\"\",IF(AND(YEAR(DicDom1+1)=AnnoCalendario,MONTH(DicDom1+1)=12),DicDom1+1,\"\"))","v":""},{"$f":"IF(DAY(DicDom1)=1,\"\",IF(AND(YEAR(DicDom1+2)=AnnoCalendario,MONTH(DicDom1+2)=12),DicDom1+2,\"\"))","v":""},{"$f":"IF(DAY(DicDom1)=1,\"\",IF(AND(YEAR(DicDom1+3)=AnnoCalendario,MONTH(DicDom1+3)=12),DicDom1+3,\"\"))","v":""},{"$f":"IF(DAY(DicDom1)=1,\"\",IF(AND(YEAR(DicDom1+4)=AnnoCalendario,MONTH(DicDom1+4)=12),DicDom1+4,\"\"))","v":""},{"$f":"IF(DAY(DicDom1)=1,\"\",IF(AND(YEAR(DicDom1+5)=AnnoCalendario,MONTH(DicDom1+5)=12),DicDom1+5,\"\"))","v":""},{"$f":"IF(DAY(DicDom1)=1,\"\",IF(AND(YEAR(DicDom1+6)=AnnoCalendario,MONTH(DicDom1+6)=12),DicDom1+6,\"\"))","v":""},{"$f":"IF(DAY(DicDom1)=1,IF(AND(YEAR(DicDom1)=AnnoCalendario,MONTH(DicDom1)=12),DicDom1,\"\"),IF(AND(YEAR(DicDom1+7)=AnnoCalendario,MONTH(DicDom1+7)=12),DicDom1+7,\"\"))","v":"2019-12-01"}]
[null,null,{"$f":"IF(DAY(NovDom1)=1,IF(AND(YEAR(NovDom1+1)=AnnoCalendario,MONTH(NovDom1+1)=11),NovDom1+1,\"\"),IF(AND(YEAR(NovDom1+8)=AnnoCalendario,MONTH(NovDom1+8)=11),NovDom1+8,\"\"))","v":"2019-11-04"},{"$f":"IF(DAY(NovDom1)=1,IF(AND(YEAR(NovDom1+2)=AnnoCalendario,MONTH(NovDom1+2)=11),NovDom1+2,\"\"),IF(AND(YEAR(NovDom1+9)=AnnoCalendario,MONTH(NovDom1+9)=11),NovDom1+9,\"\"))","v":"2019-11-05"},{"$f":"IF(DAY(NovDom1)=1,IF(AND(YEAR(NovDom1+3)=AnnoCalendario,MONTH(NovDom1+3)=11),NovDom1+3,\"\"),IF(AND(YEAR(NovDom1+10)=AnnoCalendario,MONTH(NovDom1+10)=11),NovDom1+10,\"\"))","v":"2019-11-06"},{"$f":"IF(DAY(NovDom1)=1,IF(AND(YEAR(NovDom1+4)=AnnoCalendario,MONTH(NovDom1+4)=11),NovDom1+4,\"\"),IF(AND(YEAR(NovDom1+11)=AnnoCalendario,MONTH(NovDom1+11)=11),NovDom1+11,\"\"))","v":"2019-11-07"},{"$f":"IF(DAY(NovDom1)=1,IF(AND(YEAR(NovDom1+5)=AnnoCalendario,MONTH(NovDom1+5)=11),NovDom1+5,\"\"),IF(AND(YEAR(NovDom1+12)=AnnoCalendario,MONTH(NovDom1+12)=11),NovDom1+12,\"\"))","v":"2019-11-08"},{"$f":"IF(DAY(NovDom1)=1,IF(AND(YEAR(NovDom1+6)=AnnoCalendario,MONTH(NovDom1+6)=11),NovDom1+6,\"\"),IF(AND(YEAR(NovDom1+13)=AnnoCalendario,MONTH(NovDom1+13)=11),NovDom1+13,\"\"))","v":"2019-11-09"},{"$f":"IF(DAY(NovDom1)=1,IF(AND(YEAR(NovDom1+7)=AnnoCalendario,MONTH(NovDom1+7)=11),NovDom1+7,\"\"),IF(AND(YEAR(NovDom1+14)=AnnoCalendario,MONTH(NovDom1+14)=11),NovDom1+14,\"\"))","v":"2019-11-10"},null,{"$f":"IF(DAY(DicDom1)=1,IF(AND(YEAR(DicDom1+1)=AnnoCalendario,MONTH(DicDom1+1)=12),DicDom1+1,\"\"),IF(AND(YEAR(DicDom1+8)=AnnoCalendario,MONTH(DicDom1+8)=12),DicDom1+8,\"\"))","v":"2019-12-02"},{"$f":"IF(DAY(DicDom1)=1,IF(AND(YEAR(DicDom1+2)=AnnoCalendario,MONTH(DicDom1+2)=12),DicDom1+2,\"\"),IF(AND(YEAR(DicDom1+9)=AnnoCalendario,MONTH(DicDom1+9)=12),DicDom1+9,\"\"))","v":"2019-12-03"},{"$f":"IF(DAY(DicDom1)=1,IF(AND(YEAR(DicDom1+3)=AnnoCalendario,MONTH(DicDom1+3)=12),DicDom1+3,\"\"),IF(AND(YEAR(DicDom1+10)=AnnoCalendario,MONTH(DicDom1+10)=12),DicDom1+10,\"\"))","v":"2019-12-04"},{"$f":"IF(DAY(DicDom1)=1,IF(AND(YEAR(DicDom1+4)=AnnoCalendario,MONTH(DicDom1+4)=12),DicDom1+4,\"\"),IF(AND(YEAR(DicDom1+11)=AnnoCalendario,MONTH(DicDom1+11)=12),DicDom1+11,\"\"))","v":"2019-12-05"},{"$f":"IF(DAY(DicDom1)=1,IF(AND(YEAR(DicDom1+5)=AnnoCalendario,MONTH(DicDom1+5)=12),DicDom1+5,\"\"),IF(AND(YEAR(DicDom1+12)=AnnoCalendario,MONTH(DicDom1+12)=12),DicDom1+12,\"\"))","v":"2019-12-06"},{"$f":"IF(DAY(DicDom1)=1,IF(AND(YEAR(DicDom1+6)=AnnoCalendario,MONTH(DicDom1+6)=12),DicDom1+6,\"\"),IF(AND(YEAR(DicDom1+13)=AnnoCalendario,MONTH(DicDom1+13)=12),DicDom1+13,\"\"))","v":"2019-12-07"},{"$f":"IF(DAY(DicDom1)=1,IF(AND(YEAR(DicDom1+7)=AnnoCalendario,MONTH(DicDom1+7)=12),DicDom1+7,\"\"),IF(AND(YEAR(DicDom1+14)=AnnoCalendario,MONTH(DicDom1+14)=12),DicDom1+14,\"\"))","v":"2019-12-08"}]
[null,null,{"$f":"IF(DAY(NovDom1)=1,IF(AND(YEAR(NovDom1+8)=AnnoCalendario,MONTH(NovDom1+8)=11),NovDom1+8,\"\"),IF(AND(YEAR(NovDom1+15)=AnnoCalendario,MONTH(NovDom1+15)=11),NovDom1+15,\"\"))","v":"2019-11-11"},{"$f":"IF(DAY(NovDom1)=1,IF(AND(YEAR(NovDom1+9)=AnnoCalendario,MONTH(NovDom1+9)=11),NovDom1+9,\"\"),IF(AND(YEAR(NovDom1+16)=AnnoCalendario,MONTH(NovDom1+16)=11),NovDom1+16,\"\"))","v":"2019-11-12"},{"$f":"IF(DAY(NovDom1)=1,IF(AND(YEAR(NovDom1+10)=AnnoCalendario,MONTH(NovDom1+10)=11),NovDom1+10,\"\"),IF(AND(YEAR(NovDom1+17)=AnnoCalendario,MONTH(NovDom1+17)=11),NovDom1+17,\"\"))","v":"2019-11-13"},{"$f":"IF(DAY(NovDom1)=1,IF(AND(YEAR(NovDom1+11)=AnnoCalendario,MONTH(NovDom1+11)=11),NovDom1+11,\"\"),IF(AND(YEAR(NovDom1+18)=AnnoCalendario,MONTH(NovDom1+18)=11),NovDom1+18,\"\"))","v":"2019-11-14"},{"$f":"IF(DAY(NovDom1)=1,IF(AND(YEAR(NovDom1+12)=AnnoCalendario,MONTH(NovDom1+12)=11),NovDom1+12,\"\"),IF(AND(YEAR(NovDom1+19)=AnnoCalendario,MONTH(NovDom1+19)=11),NovDom1+19,\"\"))","v":"2019-11-15"},{"$f":"IF(DAY(NovDom1)=1,IF(AND(YEAR(NovDom1+13)=AnnoCalendario,MONTH(NovDom1+13)=11),NovDom1+13,\"\"),IF(AND(YEAR(NovDom1+20)=AnnoCalendario,MONTH(NovDom1+20)=11),NovDom1+20,\"\"))","v":"2019-11-16"},{"$f":"IF(DAY(NovDom1)=1,IF(AND(YEAR(NovDom1+14)=AnnoCalendario,MONTH(NovDom1+14)=11),NovDom1+14,\"\"),IF(AND(YEAR(NovDom1+21)=AnnoCalendario,MONTH(NovDom1+21)=11),NovDom1+21,\"\"))","v":"2019-11-17"},null,{"$f":"IF(DAY(DicDom1)=1,IF(AND(YEAR(DicDom1+8)=AnnoCalendario,MONTH(DicDom1+8)=12),DicDom1+8,\"\"),IF(AND(YEAR(DicDom1+15)=AnnoCalendario,MONTH(DicDom1+15)=12),DicDom1+15,\"\"))","v":"2019-12-09"},{"$f":"IF(DAY(DicDom1)=1,IF(AND(YEAR(DicDom1+9)=AnnoCalendario,MONTH(DicDom1+9)=12),DicDom1+9,\"\"),IF(AND(YEAR(DicDom1+16)=AnnoCalendario,MONTH(DicDom1+16)=12),DicDom1+16,\"\"))","v":"2019-12-10"},{"$f":"IF(DAY(DicDom1)=1,IF(AND(YEAR(DicDom1+10)=AnnoCalendario,MONTH(DicDom1+10)=12),DicDom1+10,\"\"),IF(AND(YEAR(DicDom1+17)=AnnoCalendario,MONTH(DicDom1+17)=12),DicDom1+17,\"\"))","v":"2019-12-11"},{"$f":"IF(DAY(DicDom1)=1,IF(AND(YEAR(DicDom1+11)=AnnoCalendario,MONTH(DicDom1+11)=12),DicDom1+11,\"\"),IF(AND(YEAR(DicDom1+18)=AnnoCalendario,MONTH(DicDom1+18)=12),DicDom1+18,\"\"))","v":"2019-12-12"},{"$f":"IF(DAY(DicDom1)=1,IF(AND(YEAR(DicDom1+12)=AnnoCalendario,MONTH(DicDom1+12)=12),DicDom1+12,\"\"),IF(AND(YEAR(DicDom1+19)=AnnoCalendario,MONTH(DicDom1+19)=12),DicDom1+19,\"\"))","v":"2019-12-13"},{"$f":"IF(DAY(DicDom1)=1,IF(AND(YEAR(DicDom1+13)=AnnoCalendario,MONTH(DicDom1+13)=12),DicDom1+13,\"\"),IF(AND(YEAR(DicDom1+20)=AnnoCalendario,MONTH(DicDom1+20)=12),DicDom1+20,\"\"))","v":"2019-12-14"},{"$f":"IF(DAY(DicDom1)=1,IF(AND(YEAR(DicDom1+14)=AnnoCalendario,MONTH(DicDom1+14)=12),DicDom1+14,\"\"),IF(AND(YEAR(DicDom1+21)=AnnoCalendario,MONTH(DicDom1+21)=12),DicDom1+21,\"\"))","v":"2019-12-15"}]
[null,null,{"$f":"IF(DAY(NovDom1)=1,IF(AND(YEAR(NovDom1+15)=AnnoCalendario,MONTH(NovDom1+15)=11),NovDom1+15,\"\"),IF(AND(YEAR(NovDom1+22)=AnnoCalendario,MONTH(NovDom1+22)=11),NovDom1+22,\"\"))","v":"2019-11-18"},{"$f":"IF(DAY(NovDom1)=1,IF(AND(YEAR(NovDom1+16)=AnnoCalendario,MONTH(NovDom1+16)=11),NovDom1+16,\"\"),IF(AND(YEAR(NovDom1+23)=AnnoCalendario,MONTH(NovDom1+23)=11),NovDom1+23,\"\"))","v":"2019-11-19"},{"$f":"IF(DAY(NovDom1)=1,IF(AND(YEAR(NovDom1+17)=AnnoCalendario,MONTH(NovDom1+17)=11),NovDom1+17,\"\"),IF(AND(YEAR(NovDom1+24)=AnnoCalendario,MONTH(NovDom1+24)=11),NovDom1+24,\"\"))","v":"2019-11-20"},{"$f":"IF(DAY(NovDom1)=1,IF(AND(YEAR(NovDom1+18)=AnnoCalendario,MONTH(NovDom1+18)=11),NovDom1+18,\"\"),IF(AND(YEAR(NovDom1+25)=AnnoCalendario,MONTH(NovDom1+25)=11),NovDom1+25,\"\"))","v":"2019-11-21"},{"$f":"IF(DAY(NovDom1)=1,IF(AND(YEAR(NovDom1+19)=AnnoCalendario,MONTH(NovDom1+19)=11),NovDom1+19,\"\"),IF(AND(YEAR(NovDom1+26)=AnnoCalendario,MONTH(NovDom1+26)=11),NovDom1+26,\"\"))","v":"2019-11-22"},{"$f":"IF(DAY(NovDom1)=1,IF(AND(YEAR(NovDom1+20)=AnnoCalendario,MONTH(NovDom1+20)=11),NovDom1+20,\"\"),IF(AND(YEAR(NovDom1+27)=AnnoCalendario,MONTH(NovDom1+27)=11),NovDom1+27,\"\"))","v":"2019-11-23"},{"$f":"IF(DAY(NovDom1)=1,IF(AND(YEAR(NovDom1+21)=AnnoCalendario,MONTH(NovDom1+21)=11),NovDom1+21,\"\"),IF(AND(YEAR(NovDom1+28)=AnnoCalendario,MONTH(NovDom1+28)=11),NovDom1+28,\"\"))","v":"2019-11-24"},null,{"$f":"IF(DAY(DicDom1)=1,IF(AND(YEAR(DicDom1+15)=AnnoCalendario,MONTH(DicDom1+15)=12),DicDom1+15,\"\"),IF(AND(YEAR(DicDom1+22)=AnnoCalendario,MONTH(DicDom1+22)=12),DicDom1+22,\"\"))","v":"2019-12-16"},{"$f":"IF(DAY(DicDom1)=1,IF(AND(YEAR(DicDom1+16)=AnnoCalendario,MONTH(DicDom1+16)=12),DicDom1+16,\"\"),IF(AND(YEAR(DicDom1+23)=AnnoCalendario,MONTH(DicDom1+23)=12),DicDom1+23,\"\"))","v":"2019-12-17"},{"$f":"IF(DAY(DicDom1)=1,IF(AND(YEAR(DicDom1+17)=AnnoCalendario,MONTH(DicDom1+17)=12),DicDom1+17,\"\"),IF(AND(YEAR(DicDom1+24)=AnnoCalendario,MONTH(DicDom1+24)=12),DicDom1+24,\"\"))","v":"2019-12-18"},{"$f":"IF(DAY(DicDom1)=1,IF(AND(YEAR(DicDom1+18)=AnnoCalendario,MONTH(DicDom1+18)=12),DicDom1+18,\"\"),IF(AND(YEAR(DicDom1+25)=AnnoCalendario,MONTH(DicDom1+25)=12),DicDom1+25,\"\"))","v":"2019-12-19"},{"$f":"IF(DAY(DicDom1)=1,IF(AND(YEAR(DicDom1+19)=AnnoCalendario,MONTH(DicDom1+19)=12),DicDom1+19,\"\"),IF(AND(YEAR(DicDom1+26)=AnnoCalendario,MONTH(DicDom1+26)=12),DicDom1+26,\"\"))","v":"2019-12-20"},{"$f":"IF(DAY(DicDom1)=1,IF(AND(YEAR(DicDom1+20)=AnnoCalendario,MONTH(DicDom1+20)=12),DicDom1+20,\"\"),IF(AND(YEAR(DicDom1+27)=AnnoCalendario,MONTH(DicDom1+27)=12),DicDom1+27,\"\"))","v":"2019-12-21"},{"$f":"IF(DAY(DicDom1)=1,IF(AND(YEAR(DicDom1+21)=AnnoCalendario,MONTH(DicDom1+21)=12),DicDom1+21,\"\"),IF(AND(YEAR(DicDom1+28)=AnnoCalendario,MONTH(DicDom1+28)=12),DicDom1+28,\"\"))","v":"2019-12-22"}]
[null,null,{"$f":"IF(DAY(NovDom1)=1,IF(AND(YEAR(NovDom1+22)=AnnoCalendario,MONTH(NovDom1+22)=11),NovDom1+22,\"\"),IF(AND(YEAR(NovDom1+29)=AnnoCalendario,MONTH(NovDom1+29)=11),NovDom1+29,\"\"))","v":"2019-11-25"},{"$f":"IF(DAY(NovDom1)=1,IF(AND(YEAR(NovDom1+23)=AnnoCalendario,MONTH(NovDom1+23)=11),NovDom1+23,\"\"),IF(AND(YEAR(NovDom1+30)=AnnoCalendario,MONTH(NovDom1+30)=11),NovDom1+30,\"\"))","v":"2019-11-26"},{"$f":"IF(DAY(NovDom1)=1,IF(AND(YEAR(NovDom1+24)=AnnoCalendario,MONTH(NovDom1+24)=11),NovDom1+24,\"\"),IF(AND(YEAR(NovDom1+31)=AnnoCalendario,MONTH(NovDom1+31)=11),NovDom1+31,\"\"))","v":"2019-11-27"},{"$f":"IF(DAY(NovDom1)=1,IF(AND(YEAR(NovDom1+25)=AnnoCalendario,MONTH(NovDom1+25)=11),NovDom1+25,\"\"),IF(AND(YEAR(NovDom1+32)=AnnoCalendario,MONTH(NovDom1+32)=11),NovDom1+32,\"\"))","v":"2019-11-28"},{"$f":"IF(DAY(NovDom1)=1,IF(AND(YEAR(NovDom1+26)=AnnoCalendario,MONTH(NovDom1+26)=11),NovDom1+26,\"\"),IF(AND(YEAR(NovDom1+33)=AnnoCalendario,MONTH(NovDom1+33)=11),NovDom1+33,\"\"))","v":"2019-11-29"},{"$f":"IF(DAY(NovDom1)=1,IF(AND(YEAR(NovDom1+27)=AnnoCalendario,MONTH(NovDom1+27)=11),NovDom1+27,\"\"),IF(AND(YEAR(NovDom1+34)=AnnoCalendario,MONTH(NovDom1+34)=11),NovDom1+34,\"\"))","v":"2019-11-30"},{"$f":"IF(DAY(NovDom1)=1,IF(AND(YEAR(NovDom1+28)=AnnoCalendario,MONTH(NovDom1+28)=11),NovDom1+28,\"\"),IF(AND(YEAR(NovDom1+35)=AnnoCalendario,MONTH(NovDom1+35)=11),NovDom1+35,\"\"))","v":""},null,{"$f":"IF(DAY(DicDom1)=1,IF(AND(YEAR(DicDom1+22)=AnnoCalendario,MONTH(DicDom1+22)=12),DicDom1+22,\"\"),IF(AND(YEAR(DicDom1+29)=AnnoCalendario,MONTH(DicDom1+29)=12),DicDom1+29,\"\"))","v":"2019-12-23"},{"$f":"IF(DAY(DicDom1)=1,IF(AND(YEAR(DicDom1+23)=AnnoCalendario,MONTH(DicDom1+23)=12),DicDom1+23,\"\"),IF(AND(YEAR(DicDom1+30)=AnnoCalendario,MONTH(DicDom1+30)=12),DicDom1+30,\"\"))","v":"2019-12-24"},{"$f":"IF(DAY(DicDom1)=1,IF(AND(YEAR(DicDom1+24)=AnnoCalendario,MONTH(DicDom1+24)=12),DicDom1+24,\"\"),IF(AND(YEAR(DicDom1+31)=AnnoCalendario,MONTH(DicDom1+31)=12),DicDom1+31,\"\"))","v":"2019-12-25"},{"$f":"IF(DAY(DicDom1)=1,IF(AND(YEAR(DicDom1+25)=AnnoCalendario,MONTH(DicDom1+25)=12),DicDom1+25,\"\"),IF(AND(YEAR(DicDom1+32)=AnnoCalendario,MONTH(DicDom1+32)=12),DicDom1+32,\"\"))","v":"2019-12-26"},{"$f":"IF(DAY(DicDom1)=1,IF(AND(YEAR(DicDom1+26)=AnnoCalendario,MONTH(DicDom1+26)=12),DicDom1+26,\"\"),IF(AND(YEAR(DicDom1+33)=AnnoCalendario,MONTH(DicDom1+33)=12),DicDom1+33,\"\"))","v":"2019-12-27"},{"$f":"IF(DAY(DicDom1)=1,IF(AND(YEAR(DicDom1+27)=AnnoCalendario,MONTH(DicDom1+27)=12),DicDom1+27,\"\"),IF(AND(YEAR(DicDom1+34)=AnnoCalendario,MONTH(DicDom1+34)=12),DicDom1+34,\"\"))","v":"2019-12-28"},{"$f":"IF(DAY(DicDom1)=1,IF(AND(YEAR(DicDom1+28)=AnnoCalendario,MONTH(DicDom1+28)=12),DicDom1+28,\"\"),IF(AND(YEAR(DicDom1+35)=AnnoCalendario,MONTH(DicDom1+35)=12),DicDom1+35,\"\"))","v":"2019-12-29"}]
[null,null,{"$f":"IF(DAY(NovDom1)=1,IF(AND(YEAR(NovDom1+29)=AnnoCalendario,MONTH(NovDom1+29)=11),NovDom1+29,\"\"),IF(AND(YEAR(NovDom1+36)=AnnoCalendario,MONTH(NovDom1+36)=11),NovDom1+36,\"\"))","v":""},{"$f":"IF(DAY(NovDom1)=1,IF(AND(YEAR(NovDom1+30)=AnnoCalendario,MONTH(NovDom1+30)=11),NovDom1+30,\"\"),IF(AND(YEAR(NovDom1+37)=AnnoCalendario,MONTH(NovDom1+37)=11),NovDom1+37,\"\"))","v":""},{"$f":"IF(DAY(NovDom1)=1,IF(AND(YEAR(NovDom1+31)=AnnoCalendario,MONTH(NovDom1+31)=11),NovDom1+31,\"\"),IF(AND(YEAR(NovDom1+38)=AnnoCalendario,MONTH(NovDom1+38)=11),NovDom1+38,\"\"))","v":""},{"$f":"IF(DAY(NovDom1)=1,IF(AND(YEAR(NovDom1+32)=AnnoCalendario,MONTH(NovDom1+32)=11),NovDom1+32,\"\"),IF(AND(YEAR(NovDom1+39)=AnnoCalendario,MONTH(NovDom1+39)=11),NovDom1+39,\"\"))","v":""},{"$f":"IF(DAY(NovDom1)=1,IF(AND(YEAR(NovDom1+33)=AnnoCalendario,MONTH(NovDom1+33)=11),NovDom1+33,\"\"),IF(AND(YEAR(NovDom1+40)=AnnoCalendario,MONTH(NovDom1+40)=11),NovDom1+40,\"\"))","v":""},{"$f":"IF(DAY(NovDom1)=1,IF(AND(YEAR(NovDom1+34)=AnnoCalendario,MONTH(NovDom1+34)=11),NovDom1+34,\"\"),IF(AND(YEAR(NovDom1+41)=AnnoCalendario,MONTH(NovDom1+41)=11),NovDom1+41,\"\"))","v":""},{"$f":"IF(DAY(NovDom1)=1,IF(AND(YEAR(NovDom1+35)=AnnoCalendario,MONTH(NovDom1+35)=11),NovDom1+35,\"\"),IF(AND(YEAR(NovDom1+42)=AnnoCalendario,MONTH(NovDom1+42)=11),NovDom1+42,\"\"))","v":""},null,{"$f":"IF(DAY(DicDom1)=1,IF(AND(YEAR(DicDom1+29)=AnnoCalendario,MONTH(DicDom1+29)=12),DicDom1+29,\"\"),IF(AND(YEAR(DicDom1+36)=AnnoCalendario,MONTH(DicDom1+36)=12),DicDom1+36,\"\"))","v":"2019-12-30"},{"$f":"IF(DAY(DicDom1)=1,IF(AND(YEAR(DicDom1+30)=AnnoCalendario,MONTH(DicDom1+30)=12),DicDom1+30,\"\"),IF(AND(YEAR(DicDom1+37)=AnnoCalendario,MONTH(DicDom1+37)=12),DicDom1+37,\"\"))","v":"2019-12-31"},{"$f":"IF(DAY(DicDom1)=1,IF(AND(YEAR(DicDom1+31)=AnnoCalendario,MONTH(DicDom1+31)=12),DicDom1+31,\"\"),IF(AND(YEAR(DicDom1+38)=AnnoCalendario,MONTH(DicDom1+38)=12),DicDom1+38,\"\"))","v":""},{"$f":"IF(DAY(DicDom1)=1,IF(AND(YEAR(DicDom1+32)=AnnoCalendario,MONTH(DicDom1+32)=12),DicDom1+32,\"\"),IF(AND(YEAR(DicDom1+39)=AnnoCalendario,MONTH(DicDom1+39)=12),DicDom1+39,\"\"))","v":""},{"$f":"IF(DAY(DicDom1)=1,IF(AND(YEAR(DicDom1+33)=AnnoCalendario,MONTH(DicDom1+33)=12),DicDom1+33,\"\"),IF(AND(YEAR(DicDom1+40)=AnnoCalendario,MONTH(DicDom1+40)=12),DicDom1+40,\"\"))","v":""},{"$f":"IF(DAY(DicDom1)=1,IF(AND(YEAR(DicDom1+34)=AnnoCalendario,MONTH(DicDom1+34)=12),DicDom1+34,\"\"),IF(AND(YEAR(DicDom1+41)=AnnoCalendario,MONTH(DicDom1+41)=12),DicDom1+41,\"\"))","v":""},{"$f":"IF(DAY(DicDom1)=1,IF(AND(YEAR(DicDom1+35)=AnnoCalendario,MONTH(DicDom1+35)=12),DicDom1+35,\"\"),IF(AND(YEAR(DicDom1+42)=AnnoCalendario,MONTH(DicDom1+42)=12),DicDom1+42,\"\"))","v":""}]